Workbook

Sheet Introduction
A3: . . . . . . . . . . . . . . . . . . . . . . . . . . . . . . . . . . . . . . . . . . . . . . . . .
B5: Guidelines For Estimating
B6: Swine Farrow-Wean to 6 kg Costs
B7: ="Based On "&'Farrow-Wean Input'!G13&" Sows "&FIXED('Farrow-Wean Input'!F30,0)&" Pigs Sold" -> Based On 600 Sows 16,422 Pigs Sold
G9: Date: | H9: April, 2023
B12: This guide is designed to provide you with planning information and a format for calculating costs of production of a swine farrow to 6kg enterprise in Manitoba. This operation is intended to represent the first stage of a three stage system. General Manitoba Agriculture recommendations are assumed in using feed and veterinary inputs. These figures provide an economic evaluation of the livestock and estimated prices required to cover all costs. Costs include labour, investment and depreciation, but do not include management costs, nor do they necessarily represent the average cost of production in Manitoba.
B23: These budgets may be adjusted by putting in your own figures. As a producer you are encouraged to calculate your own costs of production. The assumptions on which the costs are based are outlined in the supporting pages. These assumptions were arrived at using the breeding stock, management practices, and facilities seen in modern, well managed swine operations of comparable size in Manitoba. Productivity and performance assumptions are based on information collected by department specialists, feed companies and other organizations. Where individual herd productivity and performance levels differ from those listed, adjustments will be required.
B35: This tool is available as an Excel worksheet at:
B42: is also available to help
B43: determine machinery costs.
B51: Note: This budget is only a guide and is not intended as an in-depth study of the cost of production of this industry. Interpretation and use of this information is the responsibility of the user. If you need help with a budget, contact a Farm Management Specialist.

Sheet Assumptions
B2: Farrow-Wean to 6 kg Pig Cost of Production
B5: The following farrow wean to 6 kg cost of production budget is based on the assumption that all feed is purchased or home-mixed.
B8: ="The budget includes a land investment cost for "&'Farrow-Wean Input'!G153&" acres, with "&'Farrow-Wean Input'!G154&" acres rented out at $"&'Farrow-Wean Input'!G155&" per acre, of the estimated "&ROUND(((('Weaner-Worksheet'!D136*'Farrow-Wean Input'!F123)/(40.768*2))*2.4709661),0)&" to "&ROUND(((('Weaner-Worksheet'!D136*'Farrow-Wean Input'!F123)/(26.362*2))*2.4709661),0)&" acres of total landbase that would be required for this size of livestock operation. This land base falls within the 2XP2O5 application rate, soil phosphorus levels permitting." -> The budget includes a land investment cost for 40 acres, with 0 acres rented out at $80 per acre, of the estimated 84 to 130 acres of total landbase that would be required for this size of livestock operation. This land base falls within the 2XP2O5 application rate, soil phosphorus levels permitting.
B13: The rations illustrated in this budget are examples only. Individual farm conditions should be taken into account when formulating the diets. Producers need to know what the feed intakes of their animals are. Please consult with a nutritionist for diet formulation suggestions.
B17: The Manitoba pork production industry profile is changing and this budget was specifically designed to address the need of producers who may want to analyze the cost of starting up or switching to a farrow wean 6 kg operation. Several companies are offering contracts with varying levels of guarantees. Producers need to accurately calculate their costs before they can properly make a decision.

Sheet Farrow-Wean Summary
A1: ='Farrow-Wean Input'!G13&" Sow Farrow-Wean to 6kg Cost of Production Summary - "&Introduction!H9 -> 600 Sow Farrow-Wean to 6kg Cost of Production Summary - April, 2023
E3: Purchased Feed | I3: Home-Mixed Feed
E4: $/Pig | G4: Total | I4: $/Pig | K4: Total
A5: A. Operating Costs | E5: Sold | F5: $/Sow | G5: Cost | I5: Sold | J5: $/Sow | K5: Cost | M5: Your Cost
A6: 1. | B6: Feed Costs:
B7: 1.01 | C7: Sow Lactation Ration | E7: ='Weaner-Worksheet'!D16 -> 7.52 | F7: =ROUND(E7*'Farrow-Wean Input'!$G$30,2) -> 205.82 | G7: =ROUND(E7*'Farrow-Wean Input'!$F$30,0) -> 123493 | I7: ='Weaner-Worksheet'!D54 -> 5.83 | J7: =ROUND(I7*'Farrow-Wean Input'!$G$30,2) -> 159.57 | K7: =ROUND(I7*'Farrow-Wean Input'!$F$30,0) -> 95740
B8: 1.02 | C8: Sow Gestation Ration | E8: ='Weaner-Worksheet'!D26 -> 18.99 | F8: =ROUND(E8*'Farrow-Wean Input'!$G$30,2) -> 519.76 | G8: =ROUND(E8*'Farrow-Wean Input'!$F$30,0) -> 311854 | I8: ='Weaner-Worksheet'!D64 -> 14.58 | J8: =ROUND(I8*'Farrow-Wean Input'!$G$30,2) -> 399.05 | K8: =ROUND(I8*'Farrow-Wean Input'!$F$30,0) -> 239433
B9: 1.03 | C9: Boar Ration | E9: ='Weaner-Worksheet'!D36 -> 0.11 | F9: =ROUND(E9*'Farrow-Wean Input'!$G$30,2) -> 3.01 | G9: =ROUND(E9*'Farrow-Wean Input'!$F$30,0) -> 1806 | I9: ='Weaner-Worksheet'!D74 -> 0.08 | J9: =ROUND(I9*'Farrow-Wean Input'!$G$30,2) -> 2.19 | K9: =ROUND(I9*'Farrow-Wean Input'!$F$30,0) -> 1314
B10: 1.04 | C10: Creep Feed | E10: ='Weaner-Worksheet'!D44 -> 1.17 | F10: =ROUND(E10*'Farrow-Wean Input'!$G$30,2) -> 32.02 | G10: =ROUND(E10*'Farrow-Wean Input'!$F$30,0) -> 19214 | I10: ='Weaner-Worksheet'!D82 -> 0.64 | J10: =ROUND(I10*'Farrow-Wean Input'!$G$30,2) -> 17.52 | K10: =ROUND(I10*'Farrow-Wean Input'!$F$30,0) -> 10510
A11: Total Feed Cost | E11: =SUM(E7:E10) -> 27.79 | F11: =SUM(F7:F10) -> 760.61 | G11: =SUM(G7:G10) -> 456367 | I11: =SUM(I7:I10) -> 21.13 | J11: =SUM(J7:J10) -> 578.33 | K11: =SUM(K7:K10) -> 346997
A13: 2. | B13: Other Operating Costs:
B14: 2.01 | C14: Veterinary Medicine & Supplies: | E14: ='Weaner-Worksheet'!D90 -> 1.21 | F14: =ROUND(E14*'Farrow-Wean Input'!$G$30,2) -> 33.12 | G14: =ROUND(E14*'Farrow-Wean Input'!$F$30,0) -> 19871 | I14: =E14 -> 1.21 | J14: =ROUND(I14*'Farrow-Wean Input'!$G$30,2) -> 33.12 | K14: =ROUND(I14*'Farrow-Wean Input'!$F$30,0) -> 19871
B15: 2.02 | C15: Maintenance & Repairs | E15: ='Weaner-Worksheet'!D96 -> 1.87 | F15: =ROUND(E15*'Farrow-Wean Input'!$G$30,2) -> 51.18 | G15: =ROUND(E15*'Farrow-Wean Input'!$F$30,0) -> 30709 | I15: 1.87 | J15: =ROUND(I15*'Farrow-Wean Input'!$G$30,2) -> 51.18 | K15: =ROUND(I15*'Farrow-Wean Input'!$F$30,0) -> 30709
B16: 2.03 | C16: Hydro & Propane | E16: ='Weaner-Worksheet'!D102 -> 3.78485 | F16: =ROUND(E16*'Farrow-Wean Input'!$G$30,2) -> 103.59 | G16: =ROUND(E16*'Farrow-Wean Input'!$F$30,0) -> 62155 | I16: 3.78485 | J16: =ROUND(I16*'Farrow-Wean Input'!$G$30,2) -> 103.59 | K16: =ROUND(I16*'Farrow-Wean Input'!$F$30,0) -> 62155
B17: 2.04 | C17: Insurance | E17: ='Weaner-Worksheet'!D123 -> 1.972938838 | F17: =ROUND(E17*'Farrow-Wean Input'!$G$30,2) -> 54 | G17: =ROUND(E17*'Farrow-Wean Input'!$F$30,0) -> 32400 | I17: 1.972938838 | J17: =ROUND(I17*'Farrow-Wean Input'!$G$30,2) -> 54 | K17: =ROUND(I17*'Farrow-Wean Input'!$F$30,0) -> 32400
B18: 2.05 | C18: Manure Costs | E18: ='Weaner-Worksheet'!D166 -> 0.9300934571 | F18: =ROUND(E18*'Farrow-Wean Input'!$G$30,2) -> 25.46 | G18: =ROUND(E18*'Farrow-Wean Input'!$F$30,0) -> 15274 | I18: 0.9300934571 | J18: =ROUND(I18*'Farrow-Wean Input'!$G$30,2) -> 25.46 | K18: =ROUND(I18*'Farrow-Wean Input'!$F$30,0) -> 15274
B19: 2.06 | C19: Office Supplies | E19: ='Weaner-Worksheet'!D171 -> 0.07307270734 | F19: =ROUND(E19*'Farrow-Wean Input'!$G$30,2) -> 2 | G19: =ROUND(E19*'Farrow-Wean Input'!$F$30,0) -> 1200 | I19: 0.07307270734 | J19: =ROUND(I19*'Farrow-Wean Input'!$G$30,2) -> 2 | K19: =ROUND(I19*'Farrow-Wean Input'!$F$30,0) -> 1200
B20: 2.07 | C20: Marketing & Transport. | E20: ='Weaner-Worksheet'!D176 -> 3.69 | F20: =ROUND(E20*'Farrow-Wean Input'!$G$30,2) -> 101 | G20: =ROUND(E20*'Farrow-Wean Input'!$F$30,0) -> 60597 | I20: 3.69 | J20: =ROUND(I20*'Farrow-Wean Input'!$G$30,2) -> 101 | K20: =ROUND(I20*'Farrow-Wean Input'!$F$30,0) -> 60597
B21: 2.08 | C21: Herd Replacement | E21: ='Weaner-Worksheet'!D204 -> 3.5484 | F21: =ROUND(E21*'Farrow-Wean Input'!$G$30,2) -> 97.12 | G21: =ROUND(E21*'Farrow-Wean Input'!$F$30,0) -> 58272 | I21: 3.5484 | J21: =ROUND(I21*'Farrow-Wean Input'!$G$30,2) -> 97.12 | K21: =ROUND(I21*'Farrow-Wean Input'!$F$30,0) -> 58272
B22: 2.09 | C22: Artificial Insemination | E22: ='Weaner-Worksheet'!D212 -> 2.099926927 | F22: =ROUND(E22*'Farrow-Wean Input'!$G$30,2) -> 57.48 | G22: =ROUND(E22*'Farrow-Wean Input'!$F$30,0) -> 34485 | I22: 2.099926927 | J22: =ROUND(I22*'Farrow-Wean Input'!$G$30,2) -> 57.48 | K22: =ROUND(I22*'Farrow-Wean Input'!$F$30,0) -> 34485
B23: 2.10 | C23: Property Tax | E23: ='Weaner-Worksheet'!D224 -> 0.4567 | F23: =ROUND(E23*'Farrow-Wean Input'!$G$30,2) -> 12.5 | G23: =ROUND(E23*'Farrow-Wean Input'!$F$30,0) -> 7500 | I23: 0.4567 | J23: =ROUND(I23*'Farrow-Wean Input'!$G$30,2) -> 12.5 | K23: =ROUND(I23*'Farrow-Wean Input'!$F$30,0) -> 7500
A24: Subtotal Operating Costs | E24: =SUM(E14:E23)+E11 -> 47.42598193 | F24: =SUM(F14:F23)+F11 -> 1298.06 | G24: =SUM(G14:G23)+G11 -> 778830 | I24: =SUM(I14:I23)+I11 -> 40.76598193 | J24: =SUM(J14:J23)+J11 -> 1115.78 | K24: =SUM(K14:K23)+K11 -> 669460
B25: 2.11 | C25: Interest on Operating Costs | E25: ='Weaner-Worksheet'!D240 -> 0.8469 | F25: =ROUND(E25*'Farrow-Wean Input'!$G$30,2) -> 23.18 | G25: =ROUND(E25*'Farrow-Wean Input'!$F$30,0) -> 13908 | I25: ='Weaner-Worksheet'!D251 -> 0.728 | J25: =ROUND(I25*'Farrow-Wean Input'!$G$30,2) -> 19.93 | K25: =ROUND(I25*'Farrow-Wean Input'!$F$30,0) -> 11955
A26: Total Operating Costs | E26: =SUM(E24:E25) -> 48.27288193 | F26: =SUM(F24:F25) -> 1321.24 | G26: =SUM(G24:G25) -> 792738 | I26: =SUM(I24:I25) -> 41.49398193 | J26: =SUM(J24:J25) -> 1135.71 | K26: =SUM(K24:K25) -> 681415
A28: B. Fixed Costs
A29: 3. | B29: Depreciation:
B30: 3.01 | C30: Buildings & Manure Storage | E30: ='Weaner-Worksheet'!D264 -> 3.46 | F30: =ROUND(E30*'Farrow-Wean Input'!$G$30,2) -> 94.7 | G30: =ROUND(E30*'Farrow-Wean Input'!$F$30,0) -> 56820 | I30: ='Weaner-Worksheet'!D272 -> 3.55 | J30: =ROUND(I30*'Farrow-Wean Input'!$G$30,2) -> 97.16 | K30: =ROUND(I30*'Farrow-Wean Input'!$F$30,0) -> 58298
B31: 3.02 | C31: Equipment | E31: ='Weaner-Worksheet'!D279 -> 3.53 | F31: =ROUND(E31*'Farrow-Wean Input'!$G$30,2) -> 96.62 | G31: =ROUND(E31*'Farrow-Wean Input'!$F$30,0) -> 57970 | I31: ='Weaner-Worksheet'!D286 -> 3.86 | J31: =ROUND(I31*'Farrow-Wean Input'!$G$30,2) -> 105.65 | K31: =ROUND(I31*'Farrow-Wean Input'!$F$30,0) -> 63389
A32: Total Depreciation Cost | E32: =SUM(E30:E31) -> 6.99 | F32: =SUM(F30:F31) -> 191.32 | G32: =SUM(G30:G31) -> 114790 | I32: =SUM(I30:I31) -> 7.41 | J32: =SUM(J30:J31) -> 202.81 | K32: =SUM(K30:K31) -> 121687
A34: 4. | B34: Investment:
B35: 4.01 | C35: Land Cost | E35: ='Weaner-Worksheet'!D305 -> 0.2444891 | F35: =ROUND(E35*'Farrow-Wean Input'!$G$30,2) -> 6.69 | G35: =ROUND(E35*'Farrow-Wean Input'!$F$30,0) -> 4015 | I35: =E35 -> 0.2444891 | J35: =ROUND(I35*'Farrow-Wean Input'!$G$30,2) -> 6.69 | K35: =ROUND(I35*'Farrow-Wean Input'!$F$30,0) -> 4015
B36: 4.02 | C36: Buildings & Manure Storage | E36: ='Weaner-Worksheet'!D314 -> 1.4227 | F36: =ROUND(E36*'Farrow-Wean Input'!$G$30,2) -> 38.94 | G36: =ROUND(E36*'Farrow-Wean Input'!$F$30,0) -> 23364 | I36: ='Weaner-Worksheet'!D322 -> 1.4642 | J36: =ROUND(I36*'Farrow-Wean Input'!$G$30,2) -> 40.08 | K36: =ROUND(I36*'Farrow-Wean Input'!$F$30,0) -> 24045
B37: 4.03 | C37: Equipment | E37: ='Weaner-Worksheet'!D330 -> 0.5934 | F37: =ROUND(E37*'Farrow-Wean Input'!$G$30,2) -> 16.24 | G37: =ROUND(E37*'Farrow-Wean Input'!$F$30,0) -> 9745 | I37: ='Weaner-Worksheet'!D337 -> 0.6486 | J37: =ROUND(I37*'Farrow-Wean Input'!$G$30,2) -> 17.75 | K37: =ROUND(I37*'Farrow-Wean Input'!$F$30,0) -> 10651
B38: 4.04 | C38: Breeding Herd | E38: ='Weaner-Worksheet'!D343 -> 0.3692 | F38: =ROUND(E38*'Farrow-Wean Input'!$G$30,2) -> 10.11 | G38: =ROUND(E38*'Farrow-Wean Input'!$F$30,0) -> 6063 | I38: =E38 -> 0.3692 | J38: =ROUND(I38*'Farrow-Wean Input'!$G$30,2) -> 10.11 | K38: =ROUND(I38*'Farrow-Wean Input'!$F$30,0) -> 6063
A39: Total Investment Cost | E39: =SUM(E35:E38) -> 2.6297891 | F39: =SUM(F35:F38) -> 71.98 | G39: =SUM(G35:G38) -> 43187 | I39: =SUM(I35:I38) -> 2.7264891 | J39: =SUM(J35:J38) -> 74.63 | K39: =SUM(K35:K38) -> 44774
A40: Total Fixed Costs | E40: =E32+E39 -> 9.6197891 | F40: =F32+F39 -> 263.3 | G40: =G32+G39 -> 157977 | I40: =I32+I39 -> 10.1364891 | J40: =J32+J39 -> 277.44 | K40: =K32+K39 -> 166461
A42: C. Labour
B43: Wages, benefits and hired manager | E43: ='Weaner-Worksheet'!D351 -> 10.26 | F43: =ROUND(E43*'Farrow-Wean Input'!$G$30,2) -> 280.82 | G43: =ROUND(E43*'Farrow-Wean Input'!$F$30,0) -> 168490 | I43: =E43 -> 10.26 | J43: =ROUND(I43*'Farrow-Wean Input'!$G$30,2) -> 280.82 | K43: =ROUND(I43*'Farrow-Wean Input'!$F$30,0) -> 168490
A45: Total Cost of Production | E45: =E26+E40+E43 -> 68.15267103 | F45: =F26+F40+F43 -> 1865.36 | G45: =G26+G40+G43 -> 1119205 | I45: =I26+I40+I43 -> 61.89047103 | J45: =J26+J40+J43 -> 1693.97 | K45: =K26+K40+K43 -> 1016366
A47: Profitability and Breakeven Analysis
A49: Estimated Farmgate | E49: $/Pig | F49: $/Sow | G49: Total | I49: $/Pig | J49: $/Sow | K49: Total
B50: Market Price per weanling | E50: ='Farrow-Wean Input'!F9 -> 56 | F50: =ROUND(E50*'Farrow-Wean Input'!$G$30,2) -> 1532.72 | G50: =ROUND(E50*'Farrow-Wean Input'!$F$30,0) -> 919632 | I50: =E50 -> 56 | J50: =ROUND(I50*'Farrow-Wean Input'!$G$30,2) -> 1532.72 | K50: =ROUND(I50*'Farrow-Wean Input'!$F$30,0) -> 919632
B51: Land rental per head sold | E51: =SUM(('Farrow-Wean Input'!G154*'Farrow-Wean Input'!G155)/'Farrow-Wean Input'!F30) -> 0 | F51: =ROUND(E51*'Farrow-Wean Input'!$G$30,2) -> 0 | G51: =ROUND(E51*'Farrow-Wean Input'!$F$30,0) -> 0 | I51: =E51 -> 0 | J51: =ROUND(I51*'Farrow-Wean Input'!$G$30,2) -> 0 | K51: =ROUND(I51*'Farrow-Wean Input'!$F$30,0) -> 0
B52: Gross Revenue / hog | E52: =SUM(E50:E51) -> 56 | F52: =SUM(F50:F51) -> 1532.72 | G52: =SUM(G50:G51) -> 919632 | I52: =SUM(I50:I51) -> 56 | J52: =SUM(J50:J51) -> 1532.72 | K52: =SUM(K50:K51) -> 919632
A54: Marginal Returns
B55: Over Operating Costs | E55: =SUM(E52-E26) -> 7.72711807 | F55: =SUM(F52-F26) -> 211.48 | G55: =SUM(G52-G26) -> 126894 | I55: =SUM(I52-I26) -> 14.50601807 | J55: =SUM(J52-J26) -> 397.01 | K55: =SUM(K52-K26) -> 238217
B56: Over Operating & Labour Costs | E56: =SUM(E52-E26-E43) -> -2.53288193 | F56: =SUM(F52-F26-F43) -> -69.34 | G56: =SUM(G52-G26-G43) -> -41596 | I56: =SUM(I52-I26-I43) -> 4.24601807 | J56: =SUM(J52-J26-J43) -> 116.19 | K56: =SUM(K52-K26-K43) -> 69727
B57: Over Total Costs (Net Profit) | E57: =SUM(E52-E45) -> -12.15267103 | F57: =SUM(F52-F45) -> -332.64 | G57: =SUM(G52-G45) -> -199573 | I57: =SUM(I52-I45) -> -5.89047103 | J57: =SUM(J52-J45) -> -161.25 | K57: =SUM(K52-K45) -> -96734
A59: Operating Expense Ratio | E59: =SUM(E26/E52) -> 0.8620157487 | I59: =SUM(I26/I52) -> 0.740963963
A61: Breakeven Selling Price | E61: $/Pig | I61: $/Pig
B62: Operating Costs | E62: =(E26) -> 48.27288193 | I62: =(I26) -> 41.49398193
B63: Operating & Labour Costs | E63: =(E26+E43) -> 58.53288193 | I63: =(I26+I43) -> 51.75398193
B64: Total Costs | E64: =E45 -> 68.15267103 | I64: =I45 -> 61.89047103
A66: Return On Assets (ROA) | E66: =SUM((E57+E25+E39)*'Farrow-Wean Input'!$F$30)/(('Farrow-Wean Input'!$H$78-'Farrow-Wean Input'!H60-'Farrow-Wean Input'!H52)+(('Farrow-Wean Input'!$F$9/2)*('Farrow-Wean Input'!F30/365*'Farrow-Wean Input'!G16))) -> -0.05565239507 | I66: =SUM((I57+I25+I39)*'Farrow-Wean Input'!$F$30)/('Farrow-Wean Input'!$H$78++(('Farrow-Wean Input'!$F$9/2)*('Farrow-Wean Input'!F30/365*'Farrow-Wean Input'!G16))) -> -0.01501007481
A68: Note: This budget is only a guide and is not intended as an in depth study of the cost of production of this industry. Interpretation and utilization of this information is the responsibility of the user.

Sheet Risk Analysis
A1: Risk & Sensitivity Analysis
C3: Purchased Feed | E3: Home-Mixed Feed
C4: Per Pig | E4: Per Pig
A5: A. Operating Costs
B6: Feed cost | C6: ='Farrow-Wean Summary'!E11 -> 27.79 | E6: ='Farrow-Wean Summary'!I11 -> 21.13
B7: Other Operating Costs | C7: =SUM('Farrow-Wean Summary'!E26-'Farrow-Wean Summary'!E11) -> 20.48288193 | E7: =SUM('Farrow-Wean Summary'!I26-'Farrow-Wean Summary'!I11) -> 20.36398193
B8: Subtotal | C8: =SUM(C6:C7) -> 48.27288193 | E8: =SUM(E6:E7) -> 41.49398193
A9: B. Fixed Costs | C9: ='Farrow-Wean Summary'!E40 -> 9.6197891 | E9: ='Farrow-Wean Summary'!I40 -> 10.1364891
A10: C. Labour | C10: ='Farrow-Wean Summary'!E43 -> 10.26 | E10: ='Farrow-Wean Summary'!I43 -> 10.26
A11: Total Costs | C11: =SUM(C8:C10) -> 68.15267103 | E11: =SUM(E8:E10) -> 61.89047103
A13: Estimated Farmgate
B14: Price ($ per weanling) | C14: ='Farrow-Wean Summary'!E50 -> 56 | E14: ='Farrow-Wean Summary'!I50 -> 56
B15: Weanlings sold per sow | C15: ='Farrow-Wean Input'!G30 -> 27.37 | E15: ='Farrow-Wean Input'!G30 -> 27.37
C18: Up | E18: Down
B19: Percent Market Price Variation | C19: 0.1 | E19: 0.1
B20: Percent Feed Cost Variation | C20: 0.1 | E20: 0.05
B21: Weanlings Sold Per Sow | C21: 0.5 | E21: 2.5
B24: Higher Price ($ per weanling) | C24: =SUM(C14*(1+C19)) -> 61.6 | E24: =SUM(E14*(1+C19)) -> 61.6
B25: Lower Price ($ per weanling) | C25: =SUM(C14*(1-E19)) -> 50.4 | E25: =SUM(E14*(1-E19)) -> 50.4
B26: Higher Feed Cost | C26: =SUM(C6+(C6*(C20))) -> 30.569 | E26: =SUM(E6+(E6*C20)) -> 23.243
B27: Lower Feed Cost | C27: =SUM(C6-(C6*E20)) -> 26.4005 | E27: =SUM(E6-(E6*E20)) -> 20.0735
B28: Higher Weanlings Sold Per Sow | C28: =SUM(C15+C21) -> 27.87 | E28: =SUM(E15+C21) -> 27.87
B29: Lower Weanlings Sold Per Sow | C29: =SUM(C15-E21) -> 24.87 | E29: =SUM(E15-E21) -> 24.87
A32: ="Higher Margin Scenario - Price Up "&C19*100&"%, Feed Price Down "&E20*100&"% and Weanlings Sold Per Sow Up "&C21 -> Higher Margin Scenario - Price Up 10%, Feed Price Down 5% and Weanlings Sold Per Sow Up 0.5
B33: Operating Costs | C33: =SUM(C7+((C27*'Farrow-Wean Input'!$G$30)/C28)) -> 46.4097454 | E33: =SUM(E7+((E27*'Farrow-Wean Input'!$G$30)/E28)) -> 40.07735455
B34: Total Costs | C34: =C33+C10+C9 -> 66.2895345 | E34: =E33+E10+E9 -> 60.47384365
B35: Gross Revenue / hog | C35: =SUM(C24+'Farrow-Wean Summary'!$E$51) -> 61.6 | E35: =SUM(E24+'Farrow-Wean Summary'!$E$51) -> 61.6
B36: Marginal Returns
B37: Over Operating Costs | C37: =SUM(C35-C33) -> 15.1902546 | E37: =SUM(E35-E33) -> 21.52264545
B38: Over Operating & Labour Costs | C38: =SUM(C35-C33-C10) -> 4.930254597 | E38: =SUM(E35-E33-E10) -> 11.26264545
B39: Over Total Costs (Net Profit) | C39: =SUM(C35-C34) -> -4.689534503 | E39: =SUM(E35-E34) -> 1.126156347
B40: Operating Expense Ratio | C40: =SUM(C33/C35) -> 0.7534049578 | E40: =SUM(E33/E35) -> 0.6506064051
B41: Return on Asset (ROA) | C41: =SUM((C39+'Farrow-Wean Summary'!$E$39+'Farrow-Wean Summary'!$E$25)*'Farrow-Wean Input'!$F$30)/(('Farrow-Wean Input'!$H$78-'Farrow-Wean Input'!H52-'Farrow-Wean Input'!H60)++(('Farrow-Wean Input'!$F$9/2)*('Farrow-Wean Input'!F30/365*'Farrow-Wean Input'!G16))) -> -0.007779840031 | E41: =SUM((E39+'Farrow-Wean Summary'!$E$39+'Farrow-Wean Summary'!$E$25)*'Farrow-Wean Input'!$F$30)/('Farrow-Wean Input'!$H$78++(('Farrow-Wean Input'!$F$9/2)*('Farrow-Wean Input'!F30/365*'Farrow-Wean Input'!G16))) -> 0.02836189123
A43: ="Lower Margin Scenario - Price Down "&E19*100&"%, Feed Price Up "&C20*100&"% and Weanlings Sold Per Sow Down "&E21 -> Lower Margin Scenario - Price Down 10%, Feed Price Up 10% and Weanlings Sold Per Sow Down 2.5
B44: Operating Costs | C44: =SUM(C7+((C26*'Farrow-Wean Input'!$G$30)/C29)) -> 54.1247609 | E44: =SUM(E7+((E26*'Farrow-Wean Input'!$G$30)/E29)) -> 45.94343147
B45: Total Costs | C45: =C9+C10+C44 -> 74.00455 | E45: =E9+E10+E44 -> 66.33992057
B46: Gross Revenue / hog | C46: =SUM(C25+'Farrow-Wean Summary'!$E$51) -> 50.4 | E46: =SUM(E25+'Farrow-Wean Summary'!$E$51) -> 50.4
B47: Marginal Returns
B48: Over Operating Costs | C48: =SUM(C46-C44) -> -3.7247609 | E48: =SUM(E46-E44) -> 4.456568533
B49: Over Operating & Labour Costs | C49: =SUM(C46-C44-C10) -> -13.9847609 | E49: =SUM(E46-E44-E10) -> -5.803431467
B50: Over Total Costs (Net Profit) | C50: =SUM(C46-C45) -> -23.60455 | E50: =SUM(E46-E45) -> -15.93992057
B51: Operating Expense Ratio | C51: =SUM(C44/C46) -> 1.073903986 | E51: =SUM(E44/E46) -> 0.9115760212
B52: Return on Asset (ROA) | C52: =SUM((C50+'Farrow-Wean Summary'!$E$39+'Farrow-Wean Summary'!$E$25)*'Farrow-Wean Input'!$F$30)/(('Farrow-Wean Input'!$H$78-'Farrow-Wean Input'!H52-'Farrow-Wean Input'!H60)++(('Farrow-Wean Input'!$F$9/2)*('Farrow-Wean Input'!F30/365*'Farrow-Wean Input'!G16))) -> -0.1291108806 | E52: =SUM((E50+'Farrow-Wean Summary'!$E$39+'Farrow-Wean Summary'!$E$25)*'Farrow-Wean Input'!$F$30)/('Farrow-Wean Input'!$H$78++(('Farrow-Wean Input'!$F$9/2)*('Farrow-Wean Input'!F30/365*'Farrow-Wean Input'!G16))) -> -0.07679615126
A55: Note: This budget is only a guide and is not intended as an in depth study of the cost of production of this industry. Interpretation and utilization of this information is the responsibility of the user.

Sheet Farrow-Wean Input
A2: Farrow to 6kg Pig Production Costs
A4: 1. | B4: This input table outlines the production assumptions used.
A5: 2. | B5: Buildings and equipment are valued at new cost.
A6: 3. | B6: Manure haulage is contracted out.
A7: 4. | B7: Gilts are purchased for herd replacement.
C9: Weanling market price / head | F9: 56
A11: Indicators of Productivity
A13: Sows | G13: 600
A14: Boars | G14: 3
A15: Litters/Sow/Year | G15: 2.375
A16: Average Weaning Age (days) | G16: 21
A17: Average Born Alive per Litter | G17: 13.5
A18: Percent Pre-Weaning Mortality | G18: 12.5
A19: Percent Post-Weaning Culls | G19: 2.44
A21: Herd Profile | F21: Total | G21: /Sow | H21: /Litter | I21: %Mortality
A23: Sows | F23: =G13 -> 600
A24: Boars | F24: =G14 -> 3
A25: Litters | F25: =ROUND(G25*F23,0) -> 1425 | G25: =G15 -> 2.375
A26: Pigs Born Alive | F26: =ROUND(G17*F25,0) -> 19238 | G26: =ROUND(F26/F23,2) -> 32.06 | H26: =G17 -> 13.5
A27: Pigs Died, Pre-Weaning | F27: =ROUND(G18*F26/100,0) -> 2405 | G27: =ROUND(F27/F23,2) -> 4.01 | H27: =ROUND(F27/F25,2) -> 1.69 | I27: =G18 -> 12.5
A28: Pigs Weaned | F28: =F26-F27 -> 16833 | G28: =ROUND(F28/F23,2) -> 28.06 | H28: =ROUND(F28/F25,2) -> 11.81
A29: Pigs Culled | F29: =ROUND(G19*F28/100,0) -> 411 | G29: =ROUND(F29/F23,2) -> 0.69 | H29: =ROUND(F29/F25,2) -> 0.29 | I29: =G19 -> 2.44
A30: Weaner Pigs Sold | F30: =ROUND(F28-F29,0) -> 16422 | G30: =ROUND(F30/F23,2) -> 27.37 | H30: =ROUND(F30/F25,2) -> 11.52
A32: Feed Requirements and Costs | H32: Purchased | I32: Home-Mixed
K33: =SUM(G34:H34) -> 549.75
A34: Sow Gestation Ration | F34: 3 | G34: kg/day | H34: 549.75 | I34: ='Feed-Summary'!H29 -> 422.215625
A35: Sow Lactation Ration | F35: 6.5 | G35: kg/day | H35: 635 | I35: ='Feed-Summary'!H54 -> 491.92625
A36: Boar Ration | F36: 3 | G36: kg/day | H36: 549.75 | I36: ='Feed-Summary'!H29 -> 422.215625
A37: Creep Feed | F37: 0.5 | G37: kg/pig | H37: 2000 | I37: ='Feed-Summary'!H79 -> 1093.409125
A39: Labour
A41: Total Hours per 7-day week | G41: 120 | H41: hours/week
A42: Wage (includes benefits & hired manager) | G42: 27 | H42: /hour
F44: Sow Barn Capital Investment
K46: Your
A47: Buildings | F47: Sq.Ft. ¹ | G47: $/Sq.Ft. | H47: Total | I47: /Sow | K47: Cost
B48: Gestation | F48: =G13*27 -> 16200 | G48: 64 | H48: =F48*G48 -> 1036800 | I48: =H48/F23 -> 1728
B49: Farrowing | F49: =(F28/G15)*1.07 -> 7583.709474 | G49: 43 | H49: =F49*G49 -> 326099.5074 | I49: =H49/F23 -> 543.4991789
B50: Office & Loading | F50: 300 | G50: 50 | H50: =F50*G50 -> 15000 | I50: =H50/F23 -> 25
B51: Standby Generator | F51: =H51 -> 25000 | H51: 25000 | I51: =H51/F23 -> 41.66666667
B52: Feed Mill (building only) | H52: 45000 | I52: =H52/F23 -> 75
A53: Total Building Cost | H53: =SUM(H48:H52) -> 1447899.507 | I53: =SUM(I48:I51) -> 2338.165846
A55: Equipment ¹
B56: Gestation | G56: 26.5 | H56: =G56*F48 -> 429300 | I56: =H56/F23 -> 715.5
B57: Farrowing | G57: 26.5 | H57: =G57*F49 -> 200968.3011 | I57: =H57/F23 -> 334.9471684
B58: Fire Alarm System | H58: 3000 | I58: =H58/F23 -> 5
B59: Feed Bins (4 bins) | H59: 11000 | I59: =H59/F23 -> 18.33333333
B60: Feed Mill (equipment only) | H60: 60000 | I60: =H60/F23 -> 100
A61: Total Equipment Cost | H61: =SUM(H56:H60) -> 704268.3011 | I61: =SUM(I56:I59) -> 1073.780502
A62: Total Buildings and Equipment Cost | H62: =H53+H61 -> 2152167.808 | I62: =I53+I61 -> 3411.946347
A64: Breeding Stock
B65: Value of Replacement Sow | F65: 350 | G65: /sow | H65: =F65*F23 -> 210000 | I65: =H65/F23 -> 350
B66: Value of Replacement Boar | F66: 3500 | G66: /boar | H66: =F66*F24 -> 10500 | I66: =H66/F23 -> 17.5
A67: Total Breeding Stock Cost | H67: =SUM(H65:H66) -> 220500 | I67: =H67/F23 -> 367.5
A69: Land Value
B70: Land Investment | D70: =G153-G154 -> 40 | E70: acres @ | F70: =G156 -> 2750 | H70: =D70*F70 -> 110000 | I70: =H70/F23 -> 183.3333333
B71: Land Investment | D71: =G154 -> 0 | E71: acres @ | F71: =G156 -> 2750 | H71: =D71*F71 -> 0 | I71: =H71/F24 -> 0
A73: Other Costs
B74: Site Preparation | H74: 36000 | I74: =H74/F23 -> 60
B75: Manure Storage | H75: 120000 | I75: =H75/F23 -> 200
A76: Total Other Costs | H76: =SUM(H74:H75) -> 156000 | I76: =SUM(I74:I75) -> 260
A78: Total Capital Investment | H78: =H62+H67+H70+H71+H76 -> 2638667.808 | I78: =H78/F23 -> 4397.779681
A79: ¹ FOOTNOTE: The number of sqare feet allocated for buildings and equipment are approximations.
A80: Cost per sow for buildings and equipment will vary around the province.
A81: FOOTNOTE: 1 sq.ft. = 0.0929 sq.m; 1 sq.m.= 10.764 sq.ft.; 1 ft.= 0.3048 m
A84: Depreciation (straight line):
B85: Useful Life:
C86: Buildings | G86: 25 | H86: years
C87: Equipment | G87: 10 | H87: years
B88: Salvage Value (% of original cost):
C89: Buildings | G89: 10 | H89: %
C90: Equipment | G90: 10 | H90: %
A92: Investment Interest Rate | G92: 2.75 | H92: %
A95: Veterinary Costs: Professional Services | G95: 9 | H95: /sow
C96: Medication | G96: 24 | H96: /sow
A98: Maintenance & Repair | G98: 1.5 | H98: % of Total Capital Investment
A100: Hydro & Propane | E100: Hydro rate | G100: 0.09234 | H100: per kwhr
E101: Hydro usage | G101: 267000 | H101: kwhr
E102: Propane rate | G102: 0.75 | H102: total propane
E103: Propane usage | G103: 50000 | H103: litres
A105: Insurance
C106: Buildings & equipment | G106: 0.78 | H106: /$100 Capital Invested
C107: Breeding Stock & weaners | G107: 0.88 | H107: /$100 Capital Invested
C108: Business Interruption | G108: 0.78 | H108: /$100 Capital Invested
C109: Business Interruption based on | G109: 1200 | H109: /Sow
C110: Weaner Value | G110: 56 | H110: /Weaner
A112: Manure Costs: | D112: Storage volume | G112: 22.7 | H112: litres/sow/day ³
D113: Haulage Cost | G113: 0.0029 | H113: /litre
G114: =G113*4.56409 -> 0.013235861 | H114: /gallon
D116: Odour control (barley straw) | G116: 0 | H116: total cost
D117: Manure Management Fee | G117: 3000 | H117: total cost
C119: Manure nutrient content | F119: nutrient | G119: fertilizer | H119: % nutrient
F120: kg/1000 | G120: value | H120: value cost
F121: litres | G121: $/lb | H121: recovery / sale
C122: Total Nitrogen | F122: 2.09 | G122: 0.77 | H122: 60
C123: Phosphate (P2O5) | F123: 0.56 | G123: 0.89 | H123: 0
C124: Potassium | F124: 0.89 | G124: 0.6 | H124: 0
E125: * kg/1000 L x 10 = lbs/1000 imp. Gallons
A127: Office Supplies | D127: Estimated rate per sow | G127: 2 | H127: $/sow
A129: Marketing & Transportation | G129: 3.5 | H129: /weaner pig sold
A130: Board Levy | G130: 0.19 | H130: /weaner pig sold
A132: Breeding Herd Replacement: | G132: 42 | H132: % of sows replaced per year
B133: Cull Sow Weight | G133: 180 | H133: kg
B134: Cull Sow Price (live weight) | G134: 77.28 | H134: /100kg
B135: Cull Sow Price (dress weight) | G135: =ROUND(+G134/0.8,2) -> 96.6 | H135: /100kg
B136: Value of Replacement Sow | G136: 350 | H136: /sow
A138: Boar Replacement Rate: | G138: 50 | H138: % of boars replaced per year
B139: Cull Boar Weight | G139: 225 | H139: kg
B140: Cull Boar Price (live weight) | G140: =G134*0.714 -> 55.17792 | H140: /100kg
B141: Cull Boar Price (dress weight) | G141: =G140/0.8 -> 68.9724 | H141: /100kg
B142: Value of Replacement Boar | G142: 3500 | H142: /boar
A144: Breeding Costs
C145: Number of services/sow | G145: 2.2
C146: Cost/dose (semen) | G146: 11
A148: Property Tax:
C149: Farrow-weanling barn & land | G149: 7500 | H149: /year
C150: Land | G150: 10 | H150: /acre
A152: Land Value
C153: Number of acres | G153: 40
C154: Number of acres rented out | G154: 0
C155: Rental rate (income) | G155: 80
C156: Land value per acre | G156: 2750
A158: Operating Loan Interest Rate | G158: 8.5 | H158: %
A161: ³ FOOTNOTE: 1 cubic metre = 1000 litres
D162: 1 cubic metre = 35.314 cubic feet
D163: 1 cubic metre = 219.97 imperial gallons

Sheet Feed-Cost
A2: Feed Ingredient Costs
B4: Ingredients | E4: Price/tonne | G4: Your Cost
B5: Wheat | E5: 370
B6: Barley | E6: 320
B7: Corn | E7: 355
B8: Soybean Meal | E8: 665
B9: Canola Meal | E9: 425
B10: Peas | E10: 390
B11: Sow Micro | E11: 6000
B12: Canola Oil | E12: 2400
B13: Whey Powder | E13: 1364.6
B14: Fish Meal | E14: 3364.4
B15: Plasma | E15: 5720
B16: Limestone | E16: 203.95
B17: Dical (16% Ca-21% P) | E17: 1544.23
B18: Salt - 96% | E18: 261.9
B19: Phytase | E19: 14500
B20: L-Lysine HCL | E20: 2248.5
B21: L-Threonine | E21: 2815.6
B22: DL-Methionine | E22: 3850.2
B23: Oats - groats | E23: 375
B24: Processing Cost
B25: (Hydro,repairs/maintenance & insurance) | E25: 10
B26: Percent Weight loss due to processing | E26: 1.25 | F26: %
B27: Labour Cost | E27: 10
B29: Ration Formulas | D29: Dry | E29: Nursing | F29: Boar | G29: Creep
D30: Sow | E30: Sow | F30: Ration | G30: Ration
D31: (kg) | E31: (kg) | F31: (kg) | G31: (kg)
B32: =B5 -> Wheat | D32: 259 | E32: 568.7 | F32: 233.64 | G32: 0
B33: Barley | D33: 539 | E33: 200 | F33: 539 | G33: 0
B34: Corn | D34: 0 | E34: 0 | F34: 0 | G34: 139.75
B35: Soybean Meal | D35: 0 | E35: 196 | F35: 0 | G35: 116.59
B36: Canola Meal | D36: 80 | E36: 0 | F36: 102 | G36: 0
B37: Peas | D37: 91 | E37: 0 | F37: 91 | G37: 0
B38: =B11 -> Sow Micro | D38: 5 | E38: 5 | F38: 5 | G38: 5
B39: =B12 -> Canola Oil | D39: 0 | E39: 0 | F39: 0 | G39: 20
B40: Whey Powder | D40: 0 | E40: 0 | F40: 0 | G40: 100
B41: Fish Meal | D41: 0 | E41: 0 | F41: 0 | G41: 60
B42: Plasma | D42: 0 | E42: 0 | F42: 0 | G42: 58
B43: Limestone | D43: 10 | E43: 12 | F43: 12 | G43: 12.23
B44: Dical (16% Ca-21% P) | D44: 11 | E44: 12 | F44: 12 | G44: 9.43
B45: Salt - 96% | D45: 3.5 | E45: 5 | F45: 3.5 | G45: 3.5
B46: Phytase | D46: 0.5 | E46: 0.5 | F46: 0.5 | G46: 0
B47: L-Lysine HCL | D47: 1 | E47: 0.8 | F47: 1.36 | G47: 0.5
B48: L-Threonine | D48: 0 | E48: 0 | F48: 0 | G48: 0
B49: DL-Methionine | D49: 0 | E49: 0 | F49: 0 | G49: 0
B50: Oats - groats | D50: 0 | E50: 0 | F50: 0 | G50: 475
B51: TOTAL (kg) | D51: =SUM(D32:D50) -> 1000 | E51: =SUM(E32:E50) -> 1000 | F51: =SUM(F32:F50) -> 1000 | G51: =SUM(G32:G50) -> 1000
B54: Total Feed per Sow | D54: Dry | E54: Nursing
D55: Sow | E55: Sow | F55: Boar | G55: Creep
D56: Ration | E56: Ration | F56: Ration | G56: Ration | H56: Total
D57: (tonnes) | E57: (kg/sow) | F57: (kg) | G57: (kg) | H57: (kg)
B58: =B5 -> Wheat | D58: =((365-'Weaner-Worksheet'!$D$11)*'Farrow-Wean Input'!$F$34*D32/1000)*'Farrow-Wean Input'!$G$13/1000 -> 146.911275 | E58: =('Farrow-Wean Input'!$G$16*'Farrow-Wean Input'!$G$15*'Farrow-Wean Input'!$F$35*E32/1000)*'Farrow-Wean Input'!$G$13/1000 -> 110.6192588 | F58: =(365*'Farrow-Wean Input'!$F$36*(F32/1000))*'Farrow-Wean Input'!$G$14/1000 -> 0.7675074 | G58: =('Farrow-Wean Input'!$F$37*(G32/1000))*'Farrow-Wean Input'!$F$28/1000 -> 0 | H58: =SUM(D58:G58) -> 258.2980412
B59: Barley | D59: =((365-'Weaner-Worksheet'!$D$11)*'Farrow-Wean Input'!$F$34*D33/1000)*'Farrow-Wean Input'!$G$13/1000 -> 305.734275 | E59: =('Farrow-Wean Input'!$G$16*'Farrow-Wean Input'!$G$15*'Farrow-Wean Input'!$F$35*E33/1000)*'Farrow-Wean Input'!$G$13/1000 -> 38.9025 | F59: =(365*'Farrow-Wean Input'!$F$36*(F33/1000))*'Farrow-Wean Input'!$G$14/1000 -> 1.770615 | G59: =('Farrow-Wean Input'!$F$37*(G33/1000))*'Farrow-Wean Input'!$F$28/1000 -> 0 | H59: =SUM(D59:G59) -> 346.40739
B60: Corn | D60: =((365-'Weaner-Worksheet'!$D$11)*'Farrow-Wean Input'!$F$34*D34/1000)*'Farrow-Wean Input'!$G$13/1000 -> 0 | E60: =('Farrow-Wean Input'!$G$16*'Farrow-Wean Input'!$G$15*'Farrow-Wean Input'!$F$35*E34/1000)*'Farrow-Wean Input'!$G$13/1000 -> 0 | F60: =(365*'Farrow-Wean Input'!$F$36*(F34/1000))*'Farrow-Wean Input'!$G$14/1000 -> 0 | G60: =('Farrow-Wean Input'!$F$37*(G34/1000))*'Farrow-Wean Input'!$F$28/1000 -> 1.176205875 | H60: =SUM(D60:G60) -> 1.176205875
B61: Soybean Meal | D61: =((365-'Weaner-Worksheet'!$D$11)*'Farrow-Wean Input'!$F$34*D35/1000)*'Farrow-Wean Input'!$G$13/1000 -> 0 | E61: =('Farrow-Wean Input'!$G$16*'Farrow-Wean Input'!$G$15*'Farrow-Wean Input'!$F$35*E35/1000)*'Farrow-Wean Input'!$G$13/1000 -> 38.12445 | F61: =(365*'Farrow-Wean Input'!$F$36*(F35/1000))*'Farrow-Wean Input'!$G$14/1000 -> 0 | G61: =('Farrow-Wean Input'!$F$37*(G35/1000))*'Farrow-Wean Input'!$F$28/1000 -> 0.981279735 | H61: 39.10572974
B62: Canola Meal | D62: =((365-'Weaner-Worksheet'!$D$11)*'Farrow-Wean Input'!$F$34*D36/1000)*'Farrow-Wean Input'!$G$13/1000 -> 45.378 | E62: =('Farrow-Wean Input'!$G$16*'Farrow-Wean Input'!$G$15*'Farrow-Wean Input'!$F$35*E36/1000)*'Farrow-Wean Input'!$G$13/1000 -> 0 | F62: =(365*'Farrow-Wean Input'!$F$36*(F36/1000))*'Farrow-Wean Input'!$G$14/1000 -> 0.33507 | G62: =('Farrow-Wean Input'!$F$37*(G36/1000))*'Farrow-Wean Input'!$F$28/1000 -> 0 | H62: 45.71307
B63: Peas | D63: =((365-'Weaner-Worksheet'!$D$11)*'Farrow-Wean Input'!$F$34*D37/1000)*'Farrow-Wean Input'!$G$13/1000 -> 51.617475 | E63: =('Farrow-Wean Input'!$G$16*'Farrow-Wean Input'!$G$15*'Farrow-Wean Input'!$F$35*E37/1000)*'Farrow-Wean Input'!$G$13/1000 -> 0 | F63: =(365*'Farrow-Wean Input'!$F$36*(F37/1000))*'Farrow-Wean Input'!$G$14/1000 -> 0.298935 | G63: =('Farrow-Wean Input'!$F$37*(G37/1000))*'Farrow-Wean Input'!$F$28/1000 -> 0 | H63: 51.91641
B64: =B11 -> Sow Micro | D64: =((365-'Weaner-Worksheet'!$D$11)*'Farrow-Wean Input'!$F$34*D38/1000)*'Farrow-Wean Input'!$G$13/1000 -> 2.836125 | E64: =('Farrow-Wean Input'!$G$16*'Farrow-Wean Input'!$G$15*'Farrow-Wean Input'!$F$35*E38/1000)*'Farrow-Wean Input'!$G$13/1000 -> 0.9725625 | F64: =(365*'Farrow-Wean Input'!$F$36*(F38/1000))*'Farrow-Wean Input'!$G$14/1000 -> 0.016425 | G64: =('Farrow-Wean Input'!$F$37*(G38/1000))*'Farrow-Wean Input'!$F$28/1000 -> 0.0420825 | H64: 3.867195
B65: =B12 -> Canola Oil | D65: =((365-'Weaner-Worksheet'!$D$11)*'Farrow-Wean Input'!$F$34*D39/1000)*'Farrow-Wean Input'!$G$13/1000 -> 0 | E65: =('Farrow-Wean Input'!$G$16*'Farrow-Wean Input'!$G$15*'Farrow-Wean Input'!$F$35*E39/1000)*'Farrow-Wean Input'!$G$13/1000 -> 0 | F65: =(365*'Farrow-Wean Input'!$F$36*(F39/1000))*'Farrow-Wean Input'!$G$14/1000 -> 0 | G65: =('Farrow-Wean Input'!$F$37*(G39/1000))*'Farrow-Wean Input'!$F$28/1000 -> 0.16833 | H65: 0.16833
B66: Whey Powder | D66: =((365-'Weaner-Worksheet'!$D$11)*'Farrow-Wean Input'!$F$34*D40/1000)*'Farrow-Wean Input'!$G$13/1000 -> 0 | E66: =('Farrow-Wean Input'!$G$16*'Farrow-Wean Input'!$G$15*'Farrow-Wean Input'!$F$35*E40/1000)*'Farrow-Wean Input'!$G$13/1000 -> 0 | F66: =(365*'Farrow-Wean Input'!$F$36*(F40/1000))*'Farrow-Wean Input'!$G$14/1000 -> 0 | G66: =('Farrow-Wean Input'!$F$37*(G40/1000))*'Farrow-Wean Input'!$F$28/1000 -> 0.84165 | H66: 0.84165
B67: Fish Meal | D67: =((365-'Weaner-Worksheet'!$D$11)*'Farrow-Wean Input'!$F$34*D41/1000)*'Farrow-Wean Input'!$G$13/1000 -> 0 | E67: =('Farrow-Wean Input'!$G$16*'Farrow-Wean Input'!$G$15*'Farrow-Wean Input'!$F$35*E41/1000)*'Farrow-Wean Input'!$G$13/1000 -> 0 | F67: =(365*'Farrow-Wean Input'!$F$36*(F41/1000))*'Farrow-Wean Input'!$G$14/1000 -> 0 | G67: =('Farrow-Wean Input'!$F$37*(G41/1000))*'Farrow-Wean Input'!$F$28/1000 -> 0.50499 | H67: 0.50499
B68: Plasma | D68: =((365-'Weaner-Worksheet'!$D$11)*'Farrow-Wean Input'!$F$34*D42/1000)*'Farrow-Wean Input'!$G$13/1000 -> 0 | E68: =('Farrow-Wean Input'!$G$16*'Farrow-Wean Input'!$G$15*'Farrow-Wean Input'!$F$35*E42/1000)*'Farrow-Wean Input'!$G$13/1000 -> 0 | F68: =(365*'Farrow-Wean Input'!$F$36*(F42/1000))*'Farrow-Wean Input'!$G$14/1000 -> 0 | G68: =('Farrow-Wean Input'!$F$37*(G42/1000))*'Farrow-Wean Input'!$F$28/1000 -> 0.488157 | H68: 0.488157
B69: Limestone | D69: =((365-'Weaner-Worksheet'!$D$11)*'Farrow-Wean Input'!$F$34*D43/1000)*'Farrow-Wean Input'!$G$13/1000 -> 5.67225 | E69: =('Farrow-Wean Input'!$G$16*'Farrow-Wean Input'!$G$15*'Farrow-Wean Input'!$F$35*E43/1000)*'Farrow-Wean Input'!$G$13/1000 -> 2.33415 | F69: =(365*'Farrow-Wean Input'!$F$36*(F43/1000))*'Farrow-Wean Input'!$G$14/1000 -> 0.03942 | G69: =('Farrow-Wean Input'!$F$37*(G43/1000))*'Farrow-Wean Input'!$F$28/1000 -> 0.102933795 | H69: 8.148753795
B70: Dical (16% Ca-21% P) | D70: =((365-'Weaner-Worksheet'!$D$11)*'Farrow-Wean Input'!$F$34*D44/1000)*'Farrow-Wean Input'!$G$13/1000 -> 6.239475 | E70: =('Farrow-Wean Input'!$G$16*'Farrow-Wean Input'!$G$15*'Farrow-Wean Input'!$F$35*E44/1000)*'Farrow-Wean Input'!$G$13/1000 -> 2.33415 | F70: =(365*'Farrow-Wean Input'!$F$36*(F44/1000))*'Farrow-Wean Input'!$G$14/1000 -> 0.03942 | G70: =('Farrow-Wean Input'!$F$37*(G44/1000))*'Farrow-Wean Input'!$F$28/1000 -> 0.079367595 | H70: 8.692412595
B71: Salt - 96% | D71: =((365-'Weaner-Worksheet'!$D$11)*'Farrow-Wean Input'!$F$34*D45/1000)*'Farrow-Wean Input'!$G$13/1000 -> 1.9852875 | E71: =('Farrow-Wean Input'!$G$16*'Farrow-Wean Input'!$G$15*'Farrow-Wean Input'!$F$35*E45/1000)*'Farrow-Wean Input'!$G$13/1000 -> 0.9725625 | F71: =(365*'Farrow-Wean Input'!$F$36*(F45/1000))*'Farrow-Wean Input'!$G$14/1000 -> 0.0114975 | G71: =('Farrow-Wean Input'!$F$37*(G45/1000))*'Farrow-Wean Input'!$F$28/1000 -> 0.02945775 | H71: 2.99880525
B72: Phytase | D72: =((365-'Weaner-Worksheet'!$D$11)*'Farrow-Wean Input'!$F$34*D46/1000)*'Farrow-Wean Input'!$G$13/1000 -> 0.2836125 | E72: =('Farrow-Wean Input'!$G$16*'Farrow-Wean Input'!$G$15*'Farrow-Wean Input'!$F$35*E46/1000)*'Farrow-Wean Input'!$G$13/1000 -> 0.09725625 | F72: =(365*'Farrow-Wean Input'!$F$36*(F46/1000))*'Farrow-Wean Input'!$G$14/1000 -> 0.0016425 | G72: =('Farrow-Wean Input'!$F$37*(G46/1000))*'Farrow-Wean Input'!$F$28/1000 -> 0 | H72: 0.38251125
B73: L-Lysine HCL | D73: =((365-'Weaner-Worksheet'!$D$11)*'Farrow-Wean Input'!$F$34*D47/1000)*'Farrow-Wean Input'!$G$13/1000 -> 0.567225 | E73: =('Farrow-Wean Input'!$G$16*'Farrow-Wean Input'!$G$15*'Farrow-Wean Input'!$F$35*E47/1000)*'Farrow-Wean Input'!$G$13/1000 -> 0.15561 | F73: =(365*'Farrow-Wean Input'!$F$36*(F47/1000))*'Farrow-Wean Input'!$G$14/1000 -> 0.0044676 | G73: =('Farrow-Wean Input'!$F$37*(G47/1000))*'Farrow-Wean Input'!$F$28/1000 -> 0.00420825 | H73: 0.73151085
B74: L-Threonine | D74: =((365-'Weaner-Worksheet'!$D$11)*'Farrow-Wean Input'!$F$34*D48/1000)*'Farrow-Wean Input'!$G$13/1000 -> 0 | E74: =('Farrow-Wean Input'!$G$16*'Farrow-Wean Input'!$G$15*'Farrow-Wean Input'!$F$35*E48/1000)*'Farrow-Wean Input'!$G$13/1000 -> 0 | F74: =(365*'Farrow-Wean Input'!$F$36*(F48/1000))*'Farrow-Wean Input'!$G$14/1000 -> 0 | G74: =('Farrow-Wean Input'!$F$37*(G48/1000))*'Farrow-Wean Input'!$F$28/1000 -> 0 | H74: 0
B75: DL-Methionine | D75: =((365-'Weaner-Worksheet'!$D$11)*'Farrow-Wean Input'!$F$34*D49/1000)*'Farrow-Wean Input'!$G$13/1000 -> 0 | E75: =('Farrow-Wean Input'!$G$16*'Farrow-Wean Input'!$G$15*'Farrow-Wean Input'!$F$35*E49/1000)*'Farrow-Wean Input'!$G$13/1000 -> 0 | F75: =(365*'Farrow-Wean Input'!$F$36*(F49/1000))*'Farrow-Wean Input'!$G$14/1000 -> 0 | G75: =('Farrow-Wean Input'!$F$37*(G49/1000))*'Farrow-Wean Input'!$F$28/1000 -> 0 | H75: 0
B76: Oats - groats | D76: =((365-'Weaner-Worksheet'!$D$11)*'Farrow-Wean Input'!$F$34*D50/1000)*'Farrow-Wean Input'!$G$13/1000 -> 0 | E76: =('Farrow-Wean Input'!$G$16*'Farrow-Wean Input'!$G$15*'Farrow-Wean Input'!$F$35*E50/1000)*'Farrow-Wean Input'!$G$13/1000 -> 0 | F76: =(365*'Farrow-Wean Input'!$F$36*(F50/1000))*'Farrow-Wean Input'!$G$14/1000 -> 0 | G76: =('Farrow-Wean Input'!$F$37*(G50/1000))*'Farrow-Wean Input'!$F$28/1000 -> 3.9978375 | H76: 3.9978375
B77: Total Ration (kg/sow/year) | D77: =SUM(D58:D76) -> 567.225 | E77: =SUM(E58:E76) -> 194.5125 | F77: =SUM(F58:F76) -> 3.285 | G77: =SUM(G58:G76) -> 8.4165 | H77: =SUM(H58:H76) -> 773.439

Sheet Feed-Summary
A2: Feed Requirement and Cost Summary
F4: Ingredient | H4: Ration
D5: Amount | F5: Price | H5: Cost
A6: Sow Gestation & Boar Ration: | D6: (kg) | F6: ($ /tonne) | H6: ($ /tonne) | J6: Your Cost
A7: ='Feed-Cost'!B5 -> Wheat | D7: =IF('Feed-Cost'!D32=0," ",'Feed-Cost'!D32) -> 259 | F7: =IF('Feed-Cost'!D32=0," ",'Feed-Cost'!E5) -> 370 | H7: =IF('Feed-Cost'!D32=0," ",ROUND((D7/1000)*F7,2)) -> 95.83
A8: ='Feed-Cost'!B6 -> Barley | D8: =IF('Feed-Cost'!D33=0," ",'Feed-Cost'!D33) -> 539 | F8: =IF('Feed-Cost'!D33=0," ",'Feed-Cost'!E6) -> 320 | H8: =IF('Feed-Cost'!D33=0," ",ROUND((D8/1000)*F8,2)) -> 172.48
A9: ='Feed-Cost'!B7 -> Corn | D9: =IF('Feed-Cost'!D34=0," ",'Feed-Cost'!D34) ->  | F9: =IF('Feed-Cost'!D34=0," ",'Feed-Cost'!E7) ->  | H9: =IF('Feed-Cost'!D34=0," ",ROUND((D9/1000)*F9,2)) -> 
A10: ='Feed-Cost'!B8 -> Soybean Meal | D10: =IF('Feed-Cost'!D35=0," ",'Feed-Cost'!D35) ->  | F10: =IF('Feed-Cost'!D35=0," ",'Feed-Cost'!E8) ->  | H10: =IF('Feed-Cost'!D35=0," ",ROUND((D10/1000)*F10,2)) -> 
A11: ='Feed-Cost'!B9 -> Canola Meal | D11: =IF('Feed-Cost'!D36=0," ",'Feed-Cost'!D36) -> 80 | F11: =IF('Feed-Cost'!D36=0," ",'Feed-Cost'!E9) -> 425 | H11: =IF('Feed-Cost'!D36=0," ",ROUND((D11/1000)*F11,2)) -> 34
A12: ='Feed-Cost'!B10 -> Peas | D12: =IF('Feed-Cost'!D37=0," ",'Feed-Cost'!D37) -> 91 | F12: =IF('Feed-Cost'!D37=0," ",'Feed-Cost'!E10) -> 390 | H12: =IF('Feed-Cost'!D37=0," ",ROUND((D12/1000)*F12,2)) -> 35.49
A13: ='Feed-Cost'!B11 -> Sow Micro | D13: =IF('Feed-Cost'!D38=0," ",'Feed-Cost'!D38) -> 5 | F13: =IF('Feed-Cost'!D38=0," ",'Feed-Cost'!E11) -> 6000 | H13: =IF('Feed-Cost'!D38=0," ",ROUND((D13/1000)*F13,2)) -> 30
A14: ='Feed-Cost'!B12 -> Canola Oil | D14: =IF('Feed-Cost'!D39=0," ",'Feed-Cost'!D39) ->  | F14: =IF('Feed-Cost'!D39=0," ",'Feed-Cost'!E12) ->  | H14: =IF('Feed-Cost'!D39=0," ",ROUND((D14/1000)*F14,2)) -> 
A15: ='Feed-Cost'!B13 -> Whey Powder | D15: =IF('Feed-Cost'!D40=0," ",'Feed-Cost'!D40) ->  | F15: =IF('Feed-Cost'!D40=0," ",'Feed-Cost'!E13) ->  | H15: =IF('Feed-Cost'!D40=0," ",ROUND((D15/1000)*F15,2)) -> 
A16: ='Feed-Cost'!B14 -> Fish Meal | D16: =IF('Feed-Cost'!D41=0," ",'Feed-Cost'!D41) ->  | F16: =IF('Feed-Cost'!D41=0," ",'Feed-Cost'!E14) ->  | H16: =IF('Feed-Cost'!D41=0," ",ROUND((D16/1000)*F16,2)) -> 
A17: ='Feed-Cost'!B15 -> Plasma | D17: =IF('Feed-Cost'!D42=0," ",'Feed-Cost'!D42) ->  | F17: =IF('Feed-Cost'!D42=0," ",'Feed-Cost'!E15) ->  | H17: =IF('Feed-Cost'!D42=0," ",ROUND((D17/1000)*F17,2)) -> 
A18: ='Feed-Cost'!B16 -> Limestone | D18: =IF('Feed-Cost'!D43=0," ",'Feed-Cost'!D43) -> 10 | F18: =IF('Feed-Cost'!D43=0," ",'Feed-Cost'!E16) -> 203.95 | H18: =IF('Feed-Cost'!D43=0," ",ROUND((D18/1000)*F18,2)) -> 2.04
A19: ='Feed-Cost'!B17 -> Dical (16% Ca-21% P) | D19: =IF('Feed-Cost'!D44=0," ",'Feed-Cost'!D44) -> 11 | F19: =IF('Feed-Cost'!D44=0," ",'Feed-Cost'!E17) -> 1544.23 | H19: =IF('Feed-Cost'!D44=0," ",ROUND((D19/1000)*F19,2)) -> 16.99
A20: ='Feed-Cost'!B18 -> Salt - 96% | D20: =IF('Feed-Cost'!D45=0," ",'Feed-Cost'!D45) -> 3.5 | F20: =IF('Feed-Cost'!D45=0," ",'Feed-Cost'!E18) -> 261.9 | H20: =IF('Feed-Cost'!D45=0," ",ROUND((D20/1000)*F20,2)) -> 0.92
A21: ='Feed-Cost'!B19 -> Phytase | D21: =IF('Feed-Cost'!D46=0," ",'Feed-Cost'!D46) -> 0.5 | F21: =IF('Feed-Cost'!D46=0," ",'Feed-Cost'!E19) -> 14500 | H21: =IF('Feed-Cost'!D46=0," ",ROUND((D21/1000)*F21,2)) -> 7.25
A22: ='Feed-Cost'!B20 -> L-Lysine HCL | D22: =IF('Feed-Cost'!D47=0," ",'Feed-Cost'!D47) -> 1 | F22: =IF('Feed-Cost'!D47=0," ",'Feed-Cost'!E20) -> 2248.5 | H22: =IF('Feed-Cost'!D47=0," ",ROUND((D22/1000)*F22,2)) -> 2.25
A23: ='Feed-Cost'!B21 -> L-Threonine | D23: =IF('Feed-Cost'!D48=0," ",'Feed-Cost'!D48) ->  | F23: =IF('Feed-Cost'!D48=0," ",'Feed-Cost'!E21) ->  | H23: =IF('Feed-Cost'!D48=0," ",ROUND((D23/1000)*F23,2)) -> 
A24: ='Feed-Cost'!B22 -> DL-Methionine | D24: =IF('Feed-Cost'!D49=0," ",'Feed-Cost'!D49) ->  | F24: =IF('Feed-Cost'!D49=0," ",'Feed-Cost'!E22) ->  | H24: =IF('Feed-Cost'!D49=0," ",ROUND((D24/1000)*F24,2)) -> 
A25: ='Feed-Cost'!B23 -> Oats - groats | D25: =IF('Feed-Cost'!D50=0," ",'Feed-Cost'!D50) ->  | F25: =IF('Feed-Cost'!D50=0," ",'Feed-Cost'!E23) ->  | H25: =IF('Feed-Cost'!D50=0," ",ROUND((D25/1000)*F25,2)) -> 
A26: Total Dry Sow | D26: =SUM(D7:D25) -> 1000 | E26: kg | H26: =SUM(H7:H25) -> 397.25
A27: Adjusted For Weight Loss | F27: ='Feed-Cost'!$E$26 -> 1.25 | G27: % | H27: =H26+(F27*H26/100) -> 402.215625
A28: Plus Processing Cost | F28: ='Feed-Cost'!$E$25 -> 10 | H28: =IF(H27=0,0,H27+F28) -> 412.215625
A29: Plus Labour Cost | F29: ='Feed-Cost'!E27 -> 10 | H29: =IF(H27=0,0,H28+F29) -> 422.215625
A31: Sow Lactation:
A32: ='Feed-Cost'!B5 -> Wheat | D32: =IF('Feed-Cost'!E32=0," ",'Feed-Cost'!E32) -> 568.7 | F32: =IF('Feed-Cost'!E32=0," ",'Feed-Cost'!E5) -> 370 | H32: =IF('Feed-Cost'!E32=0," ",ROUND((D32/1000)*F32,2)) -> 210.42
A33: ='Feed-Cost'!B6 -> Barley | D33: =IF('Feed-Cost'!E33=0," ",'Feed-Cost'!E33) -> 200 | F33: =IF('Feed-Cost'!E33=0," ",'Feed-Cost'!E6) -> 320 | H33: =IF('Feed-Cost'!E33=0," ",ROUND((D33/1000)*F33,2)) -> 64
A34: ='Feed-Cost'!B7 -> Corn | D34: =IF('Feed-Cost'!E34=0," ",'Feed-Cost'!E34) ->  | F34: =IF('Feed-Cost'!E34=0," ",'Feed-Cost'!E7) ->  | H34: =IF('Feed-Cost'!E34=0," ",ROUND((D34/1000)*F34,2)) -> 
A35: ='Feed-Cost'!B8 -> Soybean Meal | D35: =IF('Feed-Cost'!E35=0," ",'Feed-Cost'!E35) -> 196 | F35: =IF('Feed-Cost'!E35=0," ",'Feed-Cost'!E8) -> 665 | H35: =IF('Feed-Cost'!E35=0," ",ROUND((D35/1000)*F35,2)) -> 130.34
A36: ='Feed-Cost'!B9 -> Canola Meal | D36: =IF('Feed-Cost'!E36=0," ",'Feed-Cost'!E36) ->  | F36: =IF('Feed-Cost'!E36=0," ",'Feed-Cost'!E9) ->  | H36: =IF('Feed-Cost'!E36=0," ",ROUND((D36/1000)*F36,2)) -> 
A37: ='Feed-Cost'!B10 -> Peas | D37: =IF('Feed-Cost'!E37=0," ",'Feed-Cost'!E37) ->  | F37: =IF('Feed-Cost'!E37=0," ",'Feed-Cost'!E10) ->  | H37: =IF('Feed-Cost'!E37=0," ",ROUND((D37/1000)*F37,2)) -> 
A38: ='Feed-Cost'!B11 -> Sow Micro | D38: =IF('Feed-Cost'!E38=0," ",'Feed-Cost'!E38) -> 5 | F38: =IF('Feed-Cost'!E38=0," ",'Feed-Cost'!E11) -> 6000 | H38: =IF('Feed-Cost'!E38=0," ",ROUND((D38/1000)*F38,2)) -> 30
A39: ='Feed-Cost'!B12 -> Canola Oil | D39: =IF('Feed-Cost'!E39=0," ",'Feed-Cost'!E39) ->  | F39: =IF('Feed-Cost'!E39=0," ",'Feed-Cost'!E12) ->  | H39: =IF('Feed-Cost'!E39=0," ",ROUND((D39/1000)*F39,2)) -> 
A40: ='Feed-Cost'!B13 -> Whey Powder | D40: =IF('Feed-Cost'!E40=0," ",'Feed-Cost'!E40) ->  | F40: =IF('Feed-Cost'!E40=0," ",'Feed-Cost'!E13) ->  | H40: =IF('Feed-Cost'!E40=0," ",ROUND((D40/1000)*F40,2)) -> 
A41: ='Feed-Cost'!B14 -> Fish Meal | D41: =IF('Feed-Cost'!E41=0," ",'Feed-Cost'!E41) ->  | F41: =IF('Feed-Cost'!E41=0," ",'Feed-Cost'!E14) ->  | H41: =IF('Feed-Cost'!E41=0," ",ROUND((D41/1000)*F41,2)) -> 
A42: ='Feed-Cost'!B15 -> Plasma | D42: =IF('Feed-Cost'!E42=0," ",'Feed-Cost'!E42) ->  | F42: =IF('Feed-Cost'!E42=0," ",'Feed-Cost'!E15) ->  | H42: =IF('Feed-Cost'!E42=0," ",ROUND((D42/1000)*F42,2)) -> 
A43: ='Feed-Cost'!B16 -> Limestone | D43: =IF('Feed-Cost'!E43=0," ",'Feed-Cost'!E43) -> 12 | F43: =IF('Feed-Cost'!E43=0," ",'Feed-Cost'!E16) -> 203.95 | H43: =IF('Feed-Cost'!E43=0," ",ROUND((D43/1000)*F43,2)) -> 2.45
A44: ='Feed-Cost'!B17 -> Dical (16% Ca-21% P) | D44: =IF('Feed-Cost'!E44=0," ",'Feed-Cost'!E44) -> 12 | F44: =IF('Feed-Cost'!E44=0," ",'Feed-Cost'!E17) -> 1544.23 | H44: =IF('Feed-Cost'!E44=0," ",ROUND((D44/1000)*F44,2)) -> 18.53
A45: ='Feed-Cost'!B18 -> Salt - 96% | D45: =IF('Feed-Cost'!E45=0," ",'Feed-Cost'!E45) -> 5 | F45: =IF('Feed-Cost'!E45=0," ",'Feed-Cost'!E18) -> 261.9 | H45: =IF('Feed-Cost'!E45=0," ",ROUND((D45/1000)*F45,2)) -> 1.31
A46: ='Feed-Cost'!B19 -> Phytase | D46: =IF('Feed-Cost'!E46=0," ",'Feed-Cost'!E46) -> 0.5 | F46: =IF('Feed-Cost'!E46=0," ",'Feed-Cost'!E19) -> 14500 | H46: =IF('Feed-Cost'!E46=0," ",ROUND((D46/1000)*F46,2)) -> 7.25
A47: ='Feed-Cost'!B20 -> L-Lysine HCL | D47: =IF('Feed-Cost'!E47=0," ",'Feed-Cost'!E47) -> 0.8 | F47: =IF('Feed-Cost'!E47=0," ",'Feed-Cost'!E20) -> 2248.5 | H47: =IF('Feed-Cost'!E47=0," ",ROUND((D47/1000)*F47,2)) -> 1.8
A48: ='Feed-Cost'!B21 -> L-Threonine | D48: =IF('Feed-Cost'!E48=0," ",'Feed-Cost'!E48) ->  | F48: =IF('Feed-Cost'!E48=0," ",'Feed-Cost'!E21) ->  | H48: =IF('Feed-Cost'!E48=0," ",ROUND((D48/1000)*F48,2)) -> 
A49: ='Feed-Cost'!B22 -> DL-Methionine | D49: =IF('Feed-Cost'!E49=0," ",'Feed-Cost'!E49) ->  | F49: =IF('Feed-Cost'!E49=0," ",'Feed-Cost'!E22) ->  | H49: =IF('Feed-Cost'!E49=0," ",ROUND((D49/1000)*F49,2)) -> 
A50: ='Feed-Cost'!B23 -> Oats - groats | D50: =IF('Feed-Cost'!E50=0," ",'Feed-Cost'!E50) ->  | F50: =IF('Feed-Cost'!E50=0," ",'Feed-Cost'!E23) ->  | H50: =IF('Feed-Cost'!E50=0," ",ROUND((D50/1000)*F50,2)) -> 
A51: Total Nursing Sow | D51: =SUM(D32:D50) -> 1000 | E51: kg | H51: =SUM(H32:H50) -> 466.1
A52: Adjusted For Weight Loss | F52: ='Feed-Cost'!$E$26 -> 1.25 | G52: % | H52: =H51+(F52*H51/100) -> 471.92625
A53: Plus Processing Cost | F53: ='Feed-Cost'!$E$25 -> 10 | H53: =IF(H52=0,0,H52+F53) -> 481.92625
A54: Plus Labour Cost | F54: ='Feed-Cost'!E27 -> 10 | H54: =IF(F52=0,0,H53+F54) -> 491.92625
A56: Creep Ration:
A57: ='Feed-Cost'!B5 -> Wheat | D57: =IF('Feed-Cost'!G32=0," ",'Feed-Cost'!G32) ->  | F57: =IF('Feed-Cost'!G32=0," ",'Feed-Cost'!E5) ->  | H57: =IF('Feed-Cost'!G32=0," ",ROUND((D57/1000)*F57,2)) -> 
A58: ='Feed-Cost'!B6 -> Barley | D58: =IF('Feed-Cost'!G33=0," ",'Feed-Cost'!G33) ->  | F58: =IF('Feed-Cost'!G33=0," ",'Feed-Cost'!E6) ->  | H58: =IF('Feed-Cost'!G33=0," ",ROUND((D58/1000)*F58,2)) -> 
A59: ='Feed-Cost'!B7 -> Corn | D59: =IF('Feed-Cost'!G34=0," ",'Feed-Cost'!G34) -> 139.75 | F59: =IF('Feed-Cost'!G34=0," ",'Feed-Cost'!E7) -> 355 | H59: =IF('Feed-Cost'!G34=0," ",ROUND((D59/1000)*F59,2)) -> 49.61
A60: ='Feed-Cost'!B8 -> Soybean Meal | D60: =IF('Feed-Cost'!G35=0," ",'Feed-Cost'!G35) -> 116.59 | F60: =IF('Feed-Cost'!G35=0," ",'Feed-Cost'!E8) -> 665 | H60: =IF('Feed-Cost'!G35=0," ",ROUND((D60/1000)*F60,2)) -> 77.53
A61: ='Feed-Cost'!B9 -> Canola Meal | D61: =IF('Feed-Cost'!G36=0," ",'Feed-Cost'!G36) ->  | F61: =IF('Feed-Cost'!G36=0," ",'Feed-Cost'!E9) ->  | H61: =IF('Feed-Cost'!G36=0," ",ROUND((D61/1000)*F61,2)) -> 
A62: ='Feed-Cost'!B10 -> Peas | D62: =IF('Feed-Cost'!G37=0," ",'Feed-Cost'!G37) ->  | F62: =IF('Feed-Cost'!G37=0," ",'Feed-Cost'!E10) ->  | H62: =IF('Feed-Cost'!G37=0," ",ROUND((D62/1000)*F62,2)) -> 
A63: ='Feed-Cost'!B11 -> Sow Micro | D63: =IF('Feed-Cost'!G38=0," ",'Feed-Cost'!G38) -> 5 | F63: =IF('Feed-Cost'!G38=0," ",'Feed-Cost'!E11) -> 6000 | H63: =IF('Feed-Cost'!G38=0," ",ROUND((D63/1000)*F63,2)) -> 30
A64: ='Feed-Cost'!B12 -> Canola Oil | D64: =IF('Feed-Cost'!G39=0," ",'Feed-Cost'!G39) -> 20 | F64: =IF('Feed-Cost'!G39=0," ",'Feed-Cost'!E12) -> 2400 | H64: =IF('Feed-Cost'!G39=0," ",ROUND((D64/1000)*F64,2)) -> 48
A65: ='Feed-Cost'!B13 -> Whey Powder | D65: =IF('Feed-Cost'!G40=0," ",'Feed-Cost'!G40) -> 100 | F65: =IF('Feed-Cost'!G40=0," ",'Feed-Cost'!E13) -> 1364.6 | H65: =IF('Feed-Cost'!G40=0," ",ROUND((D65/1000)*F65,2)) -> 136.46
A66: ='Feed-Cost'!B14 -> Fish Meal | D66: =IF('Feed-Cost'!G41=0," ",'Feed-Cost'!G41) -> 60 | F66: =IF('Feed-Cost'!G41=0," ",'Feed-Cost'!E14) -> 3364.4 | H66: =IF('Feed-Cost'!G41=0," ",ROUND((D66/1000)*F66,2)) -> 201.86
A67: ='Feed-Cost'!B15 -> Plasma | D67: =IF('Feed-Cost'!G42=0," ",'Feed-Cost'!G42) -> 58 | F67: =IF('Feed-Cost'!G42=0," ",'Feed-Cost'!E15) -> 5720 | H67: =IF('Feed-Cost'!G42=0," ",ROUND((D67/1000)*F67,2)) -> 331.76
A68: ='Feed-Cost'!B16 -> Limestone | D68: =IF('Feed-Cost'!G43=0," ",'Feed-Cost'!G43) -> 12.23 | F68: =IF('Feed-Cost'!G43=0," ",'Feed-Cost'!E16) -> 203.95 | H68: =IF('Feed-Cost'!G43=0," ",ROUND((D68/1000)*F68,2)) -> 2.49
A69: ='Feed-Cost'!B17 -> Dical (16% Ca-21% P) | D69: =IF('Feed-Cost'!G44=0," ",'Feed-Cost'!G44) -> 9.43 | F69: =IF('Feed-Cost'!G44=0," ",'Feed-Cost'!E17) -> 1544.23 | H69: =IF('Feed-Cost'!G44=0," ",ROUND((D69/1000)*F69,2)) -> 14.56
A70: ='Feed-Cost'!B18 -> Salt - 96% | D70: =IF('Feed-Cost'!G45=0," ",'Feed-Cost'!G45) -> 3.5 | F70: =IF('Feed-Cost'!G45=0," ",'Feed-Cost'!E18) -> 261.9 | H70: =IF('Feed-Cost'!G45=0," ",ROUND((D70/1000)*F70,2)) -> 0.92
A71: ='Feed-Cost'!B19 -> Phytase | D71: =IF('Feed-Cost'!G46=0," ",'Feed-Cost'!G46) ->  | F71: =IF('Feed-Cost'!G46=0," ",'Feed-Cost'!E19) ->  | H71: =IF('Feed-Cost'!G46=0," ",ROUND((D71/1000)*F71,2)) -> 
A72: ='Feed-Cost'!B20 -> L-Lysine HCL | D72: =IF('Feed-Cost'!G47=0," ",'Feed-Cost'!G47) -> 0.5 | F72: =IF('Feed-Cost'!G47=0," ",'Feed-Cost'!E20) -> 2248.5 | H72: =IF('Feed-Cost'!G47=0," ",ROUND((D72/1000)*F72,2)) -> 1.12
A73: ='Feed-Cost'!B21 -> L-Threonine | D73: =IF('Feed-Cost'!G48=0," ",'Feed-Cost'!G48) ->  | F73: =IF('Feed-Cost'!G48=0," ",'Feed-Cost'!E21) ->  | H73: =IF('Feed-Cost'!G48=0," ",ROUND((D73/1000)*F73,2)) -> 
A74: ='Feed-Cost'!B22 -> DL-Methionine | D74: =IF('Feed-Cost'!G49=0," ",'Feed-Cost'!G49) ->  | F74: =IF('Feed-Cost'!G49=0," ",'Feed-Cost'!E22) ->  | H74: =IF('Feed-Cost'!G49=0," ",ROUND((D74/1000)*F74,2)) -> 
A75: ='Feed-Cost'!B23 -> Oats - groats | D75: =IF('Feed-Cost'!G50=0," ",'Feed-Cost'!G50) -> 475 | F75: =IF('Feed-Cost'!G50=0," ",'Feed-Cost'!E23) -> 375 | H75: =IF('Feed-Cost'!G50=0," ",ROUND((D75/1000)*F75,2)) -> 178.13
A76: Total Creep | D76: =SUM(D57:D75) -> 1000 | E76: kg | H76: =SUM(H57:H75) -> 1072.44
A77: Adjusted For Weight Loss | F77: ='Feed-Cost'!$E$26 -> 1.25 | G77: % | H77: =H76+(F77*H60/100) -> 1073.409125
A78: Plus Processing Cost | F78: ='Feed-Cost'!$E$25 -> 10 | H78: =IF(H77=0,0,H77+F78) -> 1083.409125
A79: Plus Labour Cost | F79: ='Feed-Cost'!E27 -> 10 | H79: =IF(F77=0,0,H78+F79) -> 1093.409125

Sheet Weaner-Worksheet
A2: Production Cost Worksheet
A4: A. Operating Costs | J4: Your Cost
A6: 1. Feed Requirements and Costs
B8: 1.01 Sow Lactation Ration - Purchased Feeds
D9: ='Farrow-Wean Input'!G16 -> 21 | F9: days average weaning age
C10: x | D10: ='Farrow-Wean Input'!G15 -> 2.375 | F10: litters/sow/year
C11: = | D11: =D9*D10 -> 49.875 | F11: days lactation
C12: x | D12: ='Farrow-Wean Input'!F35 -> 6.5 | F12: kg ration/day
C13: x | D13: ='Farrow-Wean Input'!H35 -> 635 | F13: /tonne ration
C14: ÷ | D14: 1000 | F14: kg/tonne
C15: ÷ | D15: ='Farrow-Wean Input'!$G$30 -> 27.37 | F15: pigs/sow
C16: = | D16: =ROUND((D9*D10*D12*D13/1000)/D15,2) -> 7.52 | F16: /pig sold
B18: 1.02 Sow Gestation Ration - Purchased Feeds
D19: 365 | F19: days/year
C20: - | D20: =D11 -> 49.875 | F20: days lactation
C21: = | D21: =D19-D20 -> 315.125 | F21: days gestation
C22: x | D22: ='Farrow-Wean Input'!F34 -> 3 | F22: kg ration/day
C23: x | D23: ='Farrow-Wean Input'!H34 -> 549.75 | F23: /tonne ration
C24: ÷ | D24: 1000 | F24: kg/tonne
C25: ÷ | D25: ='Farrow-Wean Input'!$G$30 -> 27.37 | F25: pigs/sow
C26: = | D26: =ROUND((D21*D22*D23/D24)/D25,2) -> 18.99 | F26: /pig sold
B28: 1.03 Boar Ration - Purchased Feeds
D29: 365 | F29: days
C30: x | D30: ='Farrow-Wean Input'!F36 -> 3 | F30: kg ration/day
C31: x | D31: ='Farrow-Wean Input'!H36 -> 549.75 | F31: /tonne ration
C32: ÷ | D32: 1000 | F32: kg/tonne
C33: x | D33: ='Farrow-Wean Input'!G14 -> 3 | F33: boars
C34: ÷ | D34: ='Farrow-Wean Input'!G13 -> 600 | F34: sows
C35: ÷ | D35: ='Farrow-Wean Input'!$G$30 -> 27.37 | F35: pigs/sow
C36: = | D36: =ROUND((D29*D30*D31/1000*D33/D34)/D35,2) -> 0.11 | F36: /pig sold
B38: 1.04 Creep Feed - Purchased Feeds
D39: ='Farrow-Wean Input'!F37 -> 0.5 | F39: kg ration/pig
C40: x | D40: ='Farrow-Wean Input'!H37 -> 2000 | F40: /tonne of creep feed
C41: ÷ | D41: 1000 | F41: kg/tonne
C42: x | D42: ='Farrow-Wean Input'!G17*'Farrow-Wean Input'!G15 -> 32.0625 | F42: pigs born alive/sow/year
C43: ÷ | D43: ='Farrow-Wean Input'!$G$30 -> 27.37 | F43: pigs/sow
C44: = | D44: =ROUND(((D39*D40/1000)*D42)/D43,2) -> 1.17 | F44: /pig sold
B46: 1.05 Sow Lactation Ration - Home Mixed Feeds
D47: ='Farrow-Wean Input'!G16 -> 21 | F47: days average weaning age
C48: x | D48: ='Farrow-Wean Input'!G15 -> 2.375 | F48: litters/sow/year
C49: = | D49: =D47*D48 -> 49.875 | F49: days lactation
C50: x | D50: ='Farrow-Wean Input'!F35 -> 6.5 | F50: kg ration/day
C51: x | D51: ='Farrow-Wean Input'!I35 -> 491.92625 | F51: /tonne ration
C52: ÷ | D52: 1000 | F52: kg/tonne
C53: ÷ | D53: ='Farrow-Wean Input'!$G$30 -> 27.37 | F53: pigs/sow
C54: = | D54: =ROUND((D47*D48*D50*D51/1000)/D53,2) -> 5.83 | F54: /pig sold
B56: 1.06 Sow Gestation Ration - Home Mixed Feeds
D57: 365 | F57: days/year
C58: - | D58: =D11 -> 49.875 | F58: days lactation
C59: = | D59: =D57-D58 -> 315.125 | F59: days gestation
C60: x | D60: ='Farrow-Wean Input'!F34 -> 3 | F60: kg ration/day
C61: x | D61: ='Farrow-Wean Input'!I34 -> 422.215625 | F61: /tonne ration
C62: ÷ | D62: 1000 | F62: kg/tonne
C63: ÷ | D63: ='Farrow-Wean Input'!$G$30 -> 27.37 | F63: pigs/sow
C64: = | D64: =ROUND((D59*D60*D61/D62)/D63,2) -> 14.58 | F64: /pig sold
B66: 1.07 Boar Ration - Home Mixed Feeds
D67: 365 | F67: days
C68: x | D68: ='Farrow-Wean Input'!F36 -> 3 | F68: kg ration/day
C69: x | D69: ='Farrow-Wean Input'!I36 -> 422.215625 | F69: /tonne ration
C70: ÷ | D70: 1000 | F70: kg/tonne
C71: x | D71: ='Farrow-Wean Input'!G14 -> 3 | F71: boars
C72: ÷ | D72: ='Farrow-Wean Input'!G13 -> 600 | F72: sows
C73: ÷ | D73: ='Farrow-Wean Input'!$G$30 -> 27.37 | F73: pigs/sow
C74: = | D74: =ROUND((D67*D68*D69/1000*D71/D72)/D73,2) -> 0.08 | F74: /pig sold
B76: 1.08 Creep Feed - Home Mixed Feeds
D77: ='Farrow-Wean Input'!F37 -> 0.5 | F77: kg ration/pig
C78: x | D78: ='Farrow-Wean Input'!I37 -> 1093.409125 | F78: /tonne of creep feed
C79: ÷ | D79: 1000 | F79: kg/tonne
C80: x | D80: ='Farrow-Wean Input'!G17*'Farrow-Wean Input'!G15 -> 32.0625 | F80: pigs born alive/sow/year
C81: ÷ | D81: ='Farrow-Wean Input'!$G$30 -> 27.37 | F81: pigs/sow
C82: = | D82: =ROUND(((D77*D78/1000)*D80)/D81,2) -> 0.64 | F82: /pig sold
A84: 2. Other Operating Costs
B86: 2.01 Veterinary Medicine & Supplies
D87: ='Farrow-Wean Input'!G95 -> 9 | F87: /sow professional services
C88: + | D88: ='Farrow-Wean Input'!G96 -> 24 | F88: /sow medication
C89: ÷ | D89: ='Farrow-Wean Input'!$G$30 -> 27.37 | F89: pigs/sow
C90: = | D90: =ROUND((D87+D88)/D89,2) -> 1.21 | F90: /pig sold
B92: 2.02 Maintenance & Repairs
D93: ='Farrow-Wean Input'!I62 -> 3411.946347 | F93: /sow building & equipment cost
C94: x | D94: ='Farrow-Wean Input'!G98 -> 1.5 | F94: % repair & maintenance
C95: ÷ | D95: ='Farrow-Wean Input'!$G$30 -> 27.37 | F95: pigs/sow
C96: = | D96: =ROUND((D93*D94/100/D95),2) -> 1.87 | F96: /pig sold
B98: 2.03 Hydro & Propane
D99: ='Farrow-Wean Input'!G100*'Farrow-Wean Input'!G101 -> 24654.78 | F99: hydro
C100: + | D100: ='Farrow-Wean Input'!G102*'Farrow-Wean Input'!G103 -> 37500 | F100: propane
C101: ÷ | D101: ='Farrow-Wean Input'!F30 -> 16422 | F101: pigs marketed
C102: = | D102: =ROUND((D99+D100)/D101,5) -> 3.78485 | F102: /pig sold
B104: 2.04 Insurance
D105: =(+'Farrow-Wean Input'!$H$62) -> 2152167.808 | F105: buildings & equipment
C106: x | D106: ='Farrow-Wean Input'!G106 -> 0.78 | F106: /$100 capital
C107: ÷ | D107: 100
C108: ÷ | D108: ='Farrow-Wean Input'!F30 -> 16422 | F108: pigs marketed
C109: = | D109: =ROUND((D105*D106/100)/D108,2) -> 1.02 | F109: /pig sold
D111: ='Farrow-Wean Input'!H67 -> 220500 | F111: breeding stock
C112: + | D112: ='Farrow-Wean Input'!G110*'Farrow-Wean Input'!F30 -> 919632 | F112: weaners
C113: x | D113: ='Farrow-Wean Input'!G107 -> 0.88 | F113: /$100 capital
C114: ÷ | D114: ='Farrow-Wean Input'!F30 -> 16422 | F114: pigs marketed
C115: = | D115: =(((D111+D112)*D113)/100)/D114 -> 0.6109585678 | F115: /pig sold
D117: ='Farrow-Wean Input'!G109 -> 1200 | F117: business interruption coverage/sow
C118: x | D118: ='Farrow-Wean Input'!G13 -> 600 | F118: sows
C119: x | D119: ='Farrow-Wean Input'!G108 -> 0.78 | F119: /$100 capital invested
C120: ÷ | D120: ='Farrow-Wean Input'!F30 -> 16422 | F120: pigs sold
C121: = | D121: =((D117*D118)*D119/100)/D120 -> 0.3419802704 | F121: /pig sold
C123: = | D123: =D109+D115+D121 -> 1.972938838 | F123: /pig sold
B125: 2.05 Manure Costs
B126: Haulage | D126: ='Farrow-Wean Input'!G112 -> 22.7 | F126: litres/sow/day
C127: x | D127: ='Farrow-Wean Input'!G113 -> 0.0029 | F127: /litre
C128: x | D128: 365 | F128: days
C129: ÷ | D129: ='Farrow-Wean Input'!$G$30 -> 27.37 | F129: pigs/sow
C130: = | D130: =ROUND((D126*D127*D128)/D129,2) -> 0.88 | F130: /pig sold
B131: Estimated Nutrient Value
D132: ='Farrow-Wean Input'!G112 -> 22.7 | F132: litres/sow/day
C133: x | D133: 365 | F133: days/year
C134: x | D134: ='Farrow-Wean Input'!G13 -> 600 | F134: average inventory of sows
C135: ÷ | D135: 1000
C136: = | D136: =SUM((D132*D133*D134)/1000) -> 4971.3 | F136: # of 1000 litres of manure
C137: Nitrogen
D138: ='Farrow-Wean Input'!F122 -> 2.09 | F138: kg per 1000 litres
C139: x | D139: =D136 -> 4971.3 | F139: # of 1000 litres of manure
C140: x | D140: ='Farrow-Wean Input'!H122 -> 60 | F140: % nutrient value recovery
C141: ÷ | D141: 2.2045855 | F141: lbs per kg
C142: x | D142: ='Farrow-Wean Input'!G122 -> 0.77 | F142: fertilizer value per lb.
C143: ÷ | D143: ='Farrow-Wean Input'!F30 -> 16422 | F143: pigs sold
C144: = | D144: =SUM((D138*D139*(D140/100)/D141)*D142)/D143 -> 0.1325883113 | F144: estimated nutrient value / pig sold
C145: Phosphate
D146: ='Farrow-Wean Input'!F123 -> 0.56 | F146: kg per 1000 litres
C147: x | D147: =D136 -> 4971.3 | F147: # of 1000 litres of manure
C148: x | D148: ='Farrow-Wean Input'!H123 -> 0 | F148: % nutrient value recovery
C149: ÷ | D149: 2.2045855 | F149: lbs per kg
C150: x | D150: ='Farrow-Wean Input'!G123 -> 0.89 | F150: fertilizer value per lb.
C151: ÷ | D151: ='Farrow-Wean Input'!F30 -> 16422 | F151: pigs sold
C152: = | D152: =SUM((D146*D147*(D148/100)/D149)*D150)/D151 -> 0 | F152: estimated nutrient value / pig sold
C153: Potassium
D154: ='Farrow-Wean Input'!F124 -> 0.89 | F154: kg per 1000 litres
C155: x | D155: =D136 -> 4971.3 | F155: # of 1000 litres of manure
C156: x | D156: ='Farrow-Wean Input'!H124 -> 0 | F156: % nutrient value recovery
C157: ÷ | D157: 2.2045855 | F157: lbs per kg
C158: x | D158: ='Farrow-Wean Input'!G124 -> 0.6 | F158: fertilizer value per lb.
C159: ÷ | D159: ='Farrow-Wean Input'!F30 -> 16422 | F159: pigs sold
C160: = | D160: =SUM((D154*D155*(D156/100)/D157)*D158)/D159 -> 0 | F160: estimated nutrient value / pig sold
B161: Odour control & Mgmt Fees
D162: ='Farrow-Wean Input'!G116+'Farrow-Wean Input'!G117 -> 3000 | F162: total costs
C163: ÷ | D163: ='Farrow-Wean Input'!F30 -> 16422 | F163: pigs marketed
C164: = | D164: =D162/D163 -> 0.1826817684 | F164: /pig sold
B166: Total | C166: = | D166: =D130+D164-(D144+D152+D160) -> 0.9300934571 | F166: /pig sold
B168: 2.06 Office Supplies
C169: x | D169: ='Farrow-Wean Input'!G127 -> 2 | F169: $/sow
C170: ÷ | D170: ='Farrow-Wean Input'!$G$30 -> 27.37 | F170: pigs/sow
C171: = | D171: =D169/D170 -> 0.07307270734 | F171: /pig sold
B173: 2.07 Marketing & Transportation & Board Levy
D174: ='Farrow-Wean Input'!G129 -> 3.5 | F174: marketing & transportation
C175: + | D175: ='Farrow-Wean Input'!G130 -> 0.19 | F175: board levy
C176: = | D176: =D174+D175 -> 3.69 | F176: /pig sold
B178: 2.08 Herd Replacement
B179: Sow | D179: ='Farrow-Wean Input'!G133 -> 180 | F179: kg/sow (cull weight)
C180: x | D180: ='Farrow-Wean Input'!G134 -> 77.28 | F180: /100 kg live
C181: = | D181: =D179*D180/100 -> 139.104 | F181: /sow value of cull
D183: ='Farrow-Wean Input'!G136 -> 350 | F183: /sow value of replacement
C184: - | D184: =D181 -> 139.104 | F184: /sow value of cull
C185: = | D185: =D183-D181 -> 210.896 | F185: net replacement cost
C186: x | D186: ='Farrow-Wean Input'!G132 -> 42 | F186: % sow culling rate
C187: ÷ | D187: ='Farrow-Wean Input'!$G$30 -> 27.37 | F187: pigs/sow
C188: = | D188: =ROUND((D185*D186/100)/D187,2) -> 3.24 | F188: /pig sold
B191: Boar | D191: ='Farrow-Wean Input'!G139 -> 225 | F191: kg/boar (cull weight)
C192: x | D192: ='Farrow-Wean Input'!G140 -> 55.17792 | F192: /100 kg live
C193: = | D193: =D191*D192/100 -> 124.15032 | F193: /boar value of cull
D195: ='Farrow-Wean Input'!G142 -> 3500 | F195: /boar value of replacement
C196: - | D196: =D193 -> 124.15032 | F196: /boar value of cull
C197: = | D197: =D195-D196 -> 3375.84968 | F197: net replacement cost
C198: x | D198: ='Farrow-Wean Input'!G138 -> 50 | F198: % boar culling rate
C199: x | D199: ='Farrow-Wean Input'!G14 -> 3 | F199: number of boars
C200: ÷ | D200: ='Farrow-Wean Input'!G13 -> 600 | F200: number of sows
C201: ÷ | D201: ='Farrow-Wean Input'!$G$30 -> 27.37 | F201: pigs/sow
C202: = | D202: =ROUND((D197*D198*D199/D200)/D201,2)/100 -> 0.3084 | F202: /pig sold
B204: Total | D204: =D188+D202 -> 3.5484 | F204: /pig sold
B206: 2.09 Artificial Insemination
D207: ='Farrow-Wean Input'!G145 -> 2.2 | F207: Number of services
C208: x | D208: ='Farrow-Wean Input'!G146 -> 11 | F208: Cost/dose (Semen)
C209: x | D209: ='Farrow-Wean Input'!G13 -> 600 | F209: Sows
C210: x | D210: ='Farrow-Wean Input'!G15 -> 2.375 | F210: Litters/sow
C211: ÷ | D211: ='Farrow-Wean Input'!F30 -> 16422 | F211: Pigs sold
C212: = | D212: =(((D207*D208)*D209)*D210)/D211 -> 2.099926927 | F212: /pig sold
B214: 2.10 Property Taxes:
D215: ='Farrow-Wean Input'!G149 -> 7500 | F215: total taxes
C216: ÷ | D216: ='Farrow-Wean Input'!F30 -> 16422 | F216: pigs marketed
C217: = | D217: =ROUND(D215/D216,5) -> 0.4567 | F217: /pig sold
D219: ='Farrow-Wean Input'!G150 -> 10 | F219: taxes on land
C220: x | D220: ='Farrow-Wean Input'!G154 -> 0 | F220: acres
C221: ÷ | D221: ='Farrow-Wean Input'!F30 -> 16422 | F221: pigs sold
C222: = | D222: =(D219*D220)/D221 -> 0 | F222: /pig sold
B224: Total | D224: =D217+D222 -> 0.4567 | F224: /pig sold
B226: 2.11 Interest on Operating Cost:
B228: Subtotal Operating Cost x Farrow-to-Farrow Period | G228: x | H228: % Interest
B229: 365 | I229: 2
C230: Purchased Feeds
D231: 365 | F231: days per year
C232: ÷ | D232: =ROUND('Farrow-Wean Input'!G25,2) -> 2.38 | F232: litters/sow
C233: = | D233: =D231/D232 -> 153.3613445 | F233: days farrow-to-farrow
D235: ='Farrow-Wean Summary'!E24 -> 47.42598193 | F235: subtotal operating
C236: x | D236: =D233 -> 153.3613445 | F236: days farrow to farrow
... 103 more rows

Sheet Ingredient-Summary
C2: Summary of Purchased Feeds Used
B4: Number of Sows | D4: ='Farrow-Wean Input'!$G$13 -> 600
B5: Total Pigs Fed | D5: ='Farrow-Wean Input'!$F$28 -> 16833
D7: Total | E7: Total | F7: Total | G7: Total
D8: per Year | E8: per Month | F8: per Pig | G8: per Pig
D9: (tonnes) | E9: (tonnes) | F9: (kgs) | G9: (lbs)
B10: Dry Sow | D10: =IF('Farrow-Wean Input'!H34<=0,0,('Farrow-Wean Input'!F34*'Weaner-Worksheet'!D21)*'Farrow-Wean Input'!F23/1000) -> 567.225 | E10: =D10/12 -> 47.26875 | F10: =(D10/$D$5)*1000 -> 33.69720192 | G10: =F10*2.2046 -> 74.28885136
B11: Lactating Sow | D11: =IF('Farrow-Wean Input'!H35<=0,0,('Farrow-Wean Input'!F35*'Weaner-Worksheet'!D11)*'Farrow-Wean Input'!F23/1000) -> 194.5125 | E11: =D11/12 -> 16.209375 | F11: =(D11/$D$5)*1000 -> 11.55542684 | G11: =F11*2.2046 -> 25.47509401
B12: Boar | D12: =IF('Farrow-Wean Input'!H36<=0,0,('Farrow-Wean Input'!F36*'Weaner-Worksheet'!D29)*'Farrow-Wean Input'!F24/1000) -> 3.285 | E12: =D12/12 -> 0.27375 | F12: =(D12/$D$5)*1000 -> 0.1951523793 | G12: =F12*2.2046 -> 0.4302329353
B13: Creep | D13: =IF('Farrow-Wean Input'!H37<=0,0,('Farrow-Wean Input'!F37*'Farrow-Wean Input'!F28)/1000) -> 8.4165 | E13: =D13/12 -> 0.701375 | F13: =(D13/$D$5)*1000 -> 0.5 | G13: =F13*2.2046 -> 1.1023
B14: Total | D14: =SUM(D10:D13) -> 773.439 | E14: =SUM(E10:E13) -> 64.45325 | F14: =SUM(F10:F13) -> 45.94778114 | G14: =SUM(G10:G13) -> 101.2964783
A17: Summary of Home Feed Ingredients Used
D18: Total | E18: Total | F18: Total | G18: Total
D19: per Year | E19: per Month | F19: per Pig | G19: per Pig
D20: (tonnes) | E20: (tonnes) | F20: (kgs) | G20: (lbs)
B21: ='Feed-Cost'!B5 -> Wheat | D21: ='Feed-Cost'!H58 -> 258.2980412 | E21: =D21/12 -> 21.52483676 | F21: =D21/$D$5*1000 -> 15.34474194 | G21: =F21*2.2046 -> 33.82901809
B22: ='Feed-Cost'!B6 -> Barley | D22: ='Feed-Cost'!H59 -> 346.40739 | E22: 28.8672825 | F22: =D22/$D$5*1000 -> 20.57906434 | G22: 45.36860524
B23: ='Feed-Cost'!B7 -> Corn | D23: ='Feed-Cost'!H60 -> 1.176205875 | E23: 0.09801715625 | F23: 0.069875 | G23: 0.154046425
B24: ='Feed-Cost'!B8 -> Soybean Meal | D24: ='Feed-Cost'!H61 -> 39.10572974 | E24: 3.258810811 | F24: 2.323158661 | G24: 5.121635583
B25: ='Feed-Cost'!B9 -> Canola Meal | D25: ='Feed-Cost'!H62 -> 45.71307 | E25: 3.8094225 | F25: 2.715681697 | G25: 5.986991868
B26: ='Feed-Cost'!B10 -> Peas | D26: ='Feed-Cost'!H63 -> 51.91641 | E26: 4.3263675 | F26: 3.084204242 | G26: 6.799436671
B27: ='Feed-Cost'!B11 -> Sow Micro | D27: ='Feed-Cost'!H64 -> 3.867195 | E27: 0.32226625 | F27: 0.2297389057 | G27: 0.5064823916
B28: ='Feed-Cost'!B12 -> Canola Oil | D28: ='Feed-Cost'!H65 -> 0.16833 | E28: 0.0140275 | F28: 0.01 | G28: 0.022046
B29: ='Feed-Cost'!B13 -> Whey Powder | D29: ='Feed-Cost'!H66 -> 0.84165 | E29: 0.0701375 | F29: 0.05 | G29: 0.11023
B30: ='Feed-Cost'!B14 -> Fish Meal | D30: ='Feed-Cost'!H67 -> 0.50499 | E30: 0.0420825 | F30: 0.03 | G30: 0.066138
B31: ='Feed-Cost'!B15 -> Plasma | D31: ='Feed-Cost'!H68 -> 0.488157 | E31: 0.04067975 | F31: 0.029 | G31: 0.0639334
B32: ='Feed-Cost'!B16 -> Limestone | D32: ='Feed-Cost'!H69 -> 8.148753795 | E32: 0.6790628162 | F32: 0.4840939699 | G32: 1.067233566
B33: ='Feed-Cost'!B17 -> Dical (16% Ca-21% P) | D33: ='Feed-Cost'!H70 -> 8.692412595 | E33: 0.7243677163 | F33: 0.5163911718 | G33: 1.138435977
B34: ='Feed-Cost'!B18 -> Salt - 96% | D34: ='Feed-Cost'!H71 -> 2.99880525 | E34: 0.2499004375 | F34: 0.1781503743 | G34: 0.3927503151
B35: ='Feed-Cost'!B19 -> Phytase | D35: ='Feed-Cost'!H72 -> 0.38251125 | E35: 0.0318759375 | F35: 0.02272389057 | G35: 0.05009708916
B36: ='Feed-Cost'!B20 -> L-Lysine HCL | D36: ='Feed-Cost'!H73 -> 0.73151085 | E36: 0.0609592375 | F36: 0.04345695063 | G36: 0.09580519336
B37: ='Feed-Cost'!B21 -> L-Threonine | D37: ='Feed-Cost'!H74 -> 0 | E37: 0 | F37: 0 | G37: 0
B38: ='Feed-Cost'!B22 -> DL-Methionine | D38: ='Feed-Cost'!H75 -> 0 | E38: 0 | F38: 0 | G38: 0
B39: ='Feed-Cost'!B23 -> Oats - groats | D39: ='Feed-Cost'!H76 -> 3.9978375 | E39: 0.333153125 | F39: 0.2375 | G39: 0.5235925
B40: Total | D40: =SUM(D21:D39) -> 773.439 | E40: =SUM(E21:E39) -> 64.45325 | F40: =SUM(F21:F39) -> 45.94778114 | G40: =SUM(G21:G39) -> 101.2964783
